{"text_format":"1","workbook":"xlsx","n_sheets":43,"sheets":["Инструкция","Справочная информация","Лог обновления","Выбор субъекта РФ","Титульный","ГВС цены","ГВС цены (2)","Ссылки на публикации","Комментарии","Проверка","CheckCopy","AllSheetsInThisWorkbook","et_union","TEHSHEET","modInfo","REESTR_ORG","modHyperlink","modChange","modTitleSheetHeaders","modServiceModule","modClassifierValidate","Паспорт","REESTR_FILTERED","REESTR_MO","modfrmReestr","modDblClick","modfrmDateChoose","modfrmSphereChoose","modReestrMO","modSheetMain01","modSheetMain02","modSheetMain03","modSheetMain04","modSheetMain05","modSheetMain06","modSheetMain07","modSheetMain08","modUpdTemplMain","modRegionSelectSub","modfrmCheckUpdates","modCommonProv","modProvGeneralProc","modThisWorkbook"],"not_rendered":{"charts":0,"images":108,"macros":1,"external_links":0,"defined_names":224,"comments":0,"pivot_tables":0},"unopened":[],"bounds":{"document_bytes":16777216,"sheet_cells":100000,"rows_first":2000,"rows_last":500,"rows_between":2000,"halvings":0,"cell_chars":16384,"cell_head_chars":4096},"cells_cut":0,"cells_raw":0,"read":"whole","date_system":"1900"}

{"sheet":"Инструкция","index":0,"n_rows":76,"n_cols":6,"rows_kept":76,"cut":false,"hidden":false,"merged":[[15,3,15,4],[9,2,9,4],[17,3,17,4],[11,2,11,4],[12,2,12,4],[14,3,14,4],[10,2,10,4],[19,2,19,3],[18,2,18,4],[1,1,1,4],[3,1,3,4],[5,2,5,4],[6,2,6,4],[8,2,8,4],[2,2,2,3],[7,2,7,4],[16,3,16,4],[29,2,29,4],[23,3,23,4],[25,3,25,4],[26,2,26,4],[27,2,27,4],[28,2,28,4],[20,3,20,4],[13,3,13,4],[39,2,39,4],[31,2,31,4],[32,2,32,4],[33,3,33,4],[34,3,34,4],[21,3,21,4],[22,3,22,4],[30,2,30,4],[67,2,67,4],[40,2,40,4],[37,2,37,4],[38,2,38,4],[41,2,41,4],[42,2,42,4],[43,2,43,4],[56,2,56,4],[68,2,68,4],[44,2,44,4],[45,2,45,4],[46,2,46,4],[62,2,62,4],[47,2,47,4],[55,2,55,4],[65,2,65,4],[66,2,66,4],[63,2,63,4],[76,2,76,4],[82,1,82,4],[57,2,57,4],[58,2,58,4],[59,2,59,4],[60,2,60,4],[61,2,61,4],[69,2,69,4],[64,2,64,4],[70,2,70,4]]}
[]
[null,{"$f":"\"Код шаблона: \" & GetCode()","v":"Код шаблона: JKH.OPEN.INFO.PRICE.GVS"}]
[null,{"$f":"\"Версия \" & GetVersion()","v":"Версия 5.2"}]
[null,"Инструкция"]
[]
[null,null,"1.  Технические требования",null,null,"t"]
[null,null," • на рабочем месте должен быть установлен MS Office 2003, 2007, 2010 с полной версией MS Excel"]
[null,null," • макросы во время работы должны быть включены (!)"]
[null,null," • для корректной работы шаблона требуется выбрать низкий уровень безопасности"]
[null,null,"(В меню MS Excel 2003: Сервис | Макрос | Безопасность | выбрать нижний пункт «Низкая безопасность» | OK)"]
[null,null,"(В меню MS Excel 2007/2010: Параметры Excel | Центр управления безопасностью | Параметры центра управления безопасностью | Параметры макросов | Включить все макросы | ОК)"]
[null,null,"2.  Законодательная основа шаблона",null,null,"u"]
[null,null,"Данный шаблон разработан в соответствии с:"]
[null,null," • ","ПОСТАНОВЛЕНИЕМ от 30 декабря 2009 г. N 1140 «ОБ УТВЕРЖДЕНИИ СТАНДАРТОВ РАСКРЫТИЯ ИНФОРМАЦИИ ОРГАНИЗАЦИЯМИ КОММУНАЛЬНОГО КОМПЛЕКСА И СУБЪЕКТАМИ ЕСТЕСТВЕННЫХ МОНОПОЛИЙ, ОСУЩЕСТВЛЯЮЩИМИ ДЕЯТЕЛЬНОСТЬ В СФЕРЕ ОКАЗАНИЯ УСЛУГ ПО ПЕРЕДАЧЕ ТЕПЛОВОЙ ЭНЕРГИИ»"]
[null,null,null,"Полный текст Постановления на сайте ФСТ РФ"]
[null,null,null,{"$f":"\"Подробнее о сфере \"& TSphere_full","v":"Подробнее о сфере горячего водоснабжения"}]
[null,null," • ","ПОСТАНОВЛЕНИЕМ от 13 апреля 2010 г. N 237 «ОБ УТВЕРЖДЕНИИ ПРАВИЛ ОСУЩЕСТВЛЕНИЯ КОНТРОЛЯ ЗА СОБЛЮДЕНИЕМ ОРГАНИЗАЦИЯМИ КОММУНАЛЬНОГО КОМПЛЕКСА СТАНДАРТОВ РАСКРЫТИЯ ИНФОРМАЦИИ»"]
[null,null,null,"Полный текст Постановления на сайте ФСТ РФ"]
[null,null,"3.  Условные обозначения",null,null,"u"]
[null,null,"Типы ячеек:"]
[null,null,"●"," - обязательные для заполнения;"]
[null,null,"●"," - предназначенные для заполнения;"]
[null,null,"●"," - с формулами и константами или заполняемые автоматически (например, при выборе организации)."]
[null,null,"●"," - ячейки с выбором значений до двойному клику (щелчку) (например, при выборе даты или данных из "]
[null,null,null,"справочников)."]
[null,null,null,"Пояснение к заполнению на листе."]
[null,null,"4.  Работа с реестрами",null,null,"u"]
[null,null,"Если в предложенном Вам списке необходимая организация (МР/МО) отсутствует, обновите реестр с помощью кнопки «Обновить реестр организаций» («Обновить реестр МО»)."]
[null,null,"В результате синхронизации с базой данных список организаций (МР/МО) будет заменён актуальным (механизм синхронизации требует подключения к сети Интернет и основан на использовании протокола HTTPS (TCP порт 443)). "]
[null,null,"Если после обновления Вам не удалось найти необходимую организацию в списке, обратитесь к ответственному за поддержание реестра Вашего региона. Информация о региональных органах регулирования доступна по ссылке:"]
[null,null,"http://www.fstrf.ru/regions/region/showlist"]
[null,null,"5.  Обновление шаблона",null,null,"u"]
[null,null,"Если Ваш компьютер имеет подключение к Интернет, можно автоматически проверять наличие доступных обновлений. Выберите способ оповещения о наличии обновлений для шаблона:"]
[null,null,"y","проверять доступные обновления (рекомендуется)"]
[null,null,null,"никогда не проверять наличие обновлений (не рекомендуется)"]
[null,null,null,null,"Чтобы проверить наличие обновлений, нажмите кнопку «Обновить текущую версию шаблона»."]
[null,null,null,null,"Чтобы отобразить/скрыть лог обновления и статусные сообщения, нажмите кнопку \"Отобразить/скрыть лист Лог обновления\"."]
[null,null,"6.  Работа с листом «Проверка»",null,null,"u"]
[null,null,"• При сохранении шаблона осуществляется проверка корректности данных, в том числе на наличие значений в ячейках, обязательных для заполнения. "]
[null,null,"• Если какая-то ячейка не удовлетворяет условию проверки, на лист «Проверка» добавляется гиперссылка на данную ячейку и указывается причина ошибки."]
[null,null,"• В колонке «Статус» для каждого сообщения возможны 2 значения: ошибка и предупреждение. "]
[null,null,"• При наличии сообщений со статусом «Ошибка» шаблон будет отклонён системой и не будет загружен в хранилище данных, сообщения со статусом «Предупреждение» носят информационный характер, и такой шаблон будет принят системой."]
[]
[null,null,"• Если Вы работаете в табличном процессоре Microsoft Excel 2007 и выше, Вы можете использовать для работы формат XLSM (Книга Excel с поддержкой макросов)."]
[null,null,"• При сохранении не следует выбирать формат XLSX (Книга Excel), так как в указанном формате макросы, задействованные при работе с шаблоном, БЕЗВОЗВРАТНО УДАЛЯЮТСЯ."]
[null,null,"• После того, как будут устранены все замечания, при сохранении шаблона появится сообщение «Шаблон готов к сохранению без замечаний»."]
[]
[null,null,"7.  Организационно-технические консультации",null,null,"t"]
[null,null,null,"ФИО:",""]
[null,null,null,"Телефон:",""]
[null,null,null,"E-mail:"]
[null,null,null,"Web-сайт:","http://support.eias.ru/"]
[null,null,null,"Комментарий",""]
[null,null,null,"Дистрибутивы:","http://eias.ru/?page=show_distrs"]
[null,null,null,null,"для устранения ошибок (напр., \"Compile error in hidden module\")"]
[null,null,"8.  Методология заполнения",null,null,"u"]
[null,null,"   Перед началом работы с шаблоном, на листе «Выбор субъекта РФ», Вам необходимо выбрать из выпадающего списка нужный регион. После выбора региона в шаблоне отобразятся листы для заполнения."]
[null,null,"   В разделе «Справочная информация» размещены фрагменты Постановления №1140 «СТАНДАРТЫ РАСКРЫТИЯ ИНФОРМАЦИИ ОРГАНИЗАЦИЯМИ КОММУНАЛЬНОГО КОМПЛЕКСА И СУБЪЕКТАМИ ЕСТЕСТВЕННЫХ МОНОПОЛИЙ, ОСУЩЕСТВЛЯЮЩИМИ ДЕЯТЕЛЬНОСТЬ В СФЕРЕ ОКАЗАНИЯ УСЛУГ ПО ПЕРЕДАЧЕ ТЕПЛОВОЙ ЭНЕРГИИ», относящиеся к данному шаблону. В случае вопросов по составу раскрываемой информации, срокам раскрытия и формату раскрытия Вы можете уточнить их в соответствующих документах."]
[null,null,"   На листе «Титульный» нужно заполнить все ячейки голубого цвета."]
[null,null,"   Для создания печатной формы необходимо выполнить щелчок левой кнопки мыши по значку принтера (левый верхний угол под заголовком) на листе «Титульный»."]
[null,null,"   В зависимости от выбранного значения в поле «Публикация» на листе «Титульный» изменяется содержание и количество листов."]
[null,null,{"$f":" IF(TSphere = \"ТБО\", \"   Перечислите все муниципальные районы, в которых организация осуществляет услуги по утилизации (захоронению) твердых бытовых отходов.\", \"   В случае, если тариф не дифференцируется по системам \"&IF(TSphere = \"ТС\",\"теплоснабжения\",\"коммунальной инфраструктуры\")&\", перечислите все муниципальные районы, в которых организация осуществляет услуги \" &TSphere_full&\".\")","v":"   В случае, если тариф не дифференцируется по системам коммунальной инфраструктуры, перечислите все муниципальные районы, в которых организация осуществляет услуги горячего водоснабжения."}]
[null,null,{"$f":" IF(TSphere = \"ТБО\", \"   Перечислите все муниципальные образования, в которых организация осуществляет услуги по утилизации (захоронению) твердых бытовых отходов.\", \"   В случае, если тариф не дифференцируется по системам \"&IF(TSphere = \"ТС\",\"теплоснабжения\",\"коммунальной инфраструктуры\")&\", перечислите все муниципальные образования, в которых организация осуществляет услуги \" &TSphere_full&\".\")","v":"   В случае, если тариф не дифференцируется по системам коммунальной инфраструктуры, перечислите все муниципальные образования, в которых организация осуществляет услуги горячего водоснабжения."}]
[null,null,"   Задайте период регулирования на листе «Титульный» , выбрав начало и окончание очередного периода с помощью календаря /выполните двойной щелчок по соответствующей синей ячейке/."]
[null,null,"   Для выбора того или иного источника публикации выполните двойной щелчок по синей ячейке напротив соответствующего источника. Если Вы снимаете галочку с пункта, то будут скрыты и очищены соответствующие строки на листе «Ссылки на публикации»."]
[null,null,"  На листе «Ссылки на публикации» «Адрес сайта в сети интернет» вводите, не нарушая цвет ячейки /если копируете гиперссылку из браузера, то выполните двойной щелчок левой кнопки мыши по ячейке и только после этого можете вставить скопированный элемент/."]
[null,null,"   При вводе даты на расчетных листах необходимо выполнить двойной щелчок левой кнопки мыши по соответствующей ячейке."]
[null,null,"   Если какой-либо из показателей на расчетных листах для Вашей организации отсутствует, введите в поле, обязательное для заполнение, «0» (для числовых показателей) и «-» (для текстовых). "]
[null,null,"   Внимательно следите за информационными сообщениями на расчетных листах. "]
[null,null,"   Все необходимые комментарии по всем формам Вы можете отразить на листе «Комментарии». "]
[null,null,"9.  Консультации по методологии заполнения",null,null,"u"]
[null,null,null,"ФИО:",""]
[null,null,null,"Телефон:",""]
[null,null,null,"E-mail:","openinfo@eias.ru"]
[null,null,null,"Web-сайт:","http://www.support.eias.ru/"]
[null,null,null,"Комментарий",""]

{"sheet":"Справочная информация","index":1,"n_rows":79,"n_cols":3,"rows_kept":79,"cut":false,"hidden":false,"merged":[[2,1,2,2]]}
[]
[null,{"$f":"code","v":"Код шаблона: JKH.OPEN.INFO.PRICE.GVS"}]
[null,"Инструкция"]
[]
[]
[null,null,"III. Стандарты раскрытия информации в сфере горячего водоснабжения"]
[]
[null,null,"22. В сфере горячего водоснабжения раскрытию подлежит информация: "]
[null,null,"а) о ценах (тарифах) на регулируемые товары и услуги и надбавках к этим ценам (тарифам); "]
[null,null,"б) об основных показателях финансово-хозяйственной деятельности регулируемых организаций, включая структуру основных производственных затрат (в части регулируемой деятельности); "]
[null,null,"в) об основных потребительских характеристиках регулируемых товаров и услуг регулируемых организаций и их соответствии государственным и иным утвержденным стандартам качества; "]
[null,null,"г) об инвестиционных программах и отчетах об их реализации; "]
[null,null,"д) о наличии (отсутствии) технической возможности доступа к регулируемым товарам и услугам регулируемых организаций, а также о регистрации и ходе реализации заявок на подключение к системе горячего водоснабжения; "]
[null,null,"е) об условиях, на которых осуществляется поставка регулируемых товаров и (или) оказание регулируемых услуг; "]
[null,null,"ж) о порядке выполнения технологических, технических и других мероприятий, связанных с подключением к системе горячего водоснабжения. "]
[null,null,"23. Информация о ценах (тарифах) на регулируемые товары и услуги и надбавках к этим ценам (тарифам) содержит сведения: "]
[null,null,"а) об утвержденных тарифах на горячую воду; "]
[null,null,"б) об утвержденных надбавках к ценам (тарифам) на горячую воду для потребителей; "]
[null,null,"в) об утвержденных надбавках к тарифам регулируемых организаций на горячую воду; "]
[null,null,"г) об утвержденных тарифах на подключение создаваемых (реконструируемых) объектов недвижимости к системе горячего водоснабжения; "]
[null,null,"д) об утвержденных тарифах регулируемых организаций на подключение к системе горячего водоснабжения. "]
[null,null,"24. В отношении каждой из групп сведений, указанных в пункте 23 настоящего документа, указываются наименование регулирующего органа, принявшего решение об утверждении цен (тарифов) и надбавок к ним, реквизиты (дата и номер) такого решения, величина установленного тарифа или надбавки, срок действия тарифа или надбавки, а также источник официального опубликования решения. "]
[null,null,"25. Информация об основных показателях финансово-хозяйственной деятельности регулируемых организаций, включая структуру основных производственных затрат (в части регулируемой деятельности), содержит сведения: "]
[null,null,"а) о виде регулируемой деятельности (поставка горячей воды, оказание услуг в сфере горячего водоснабжения); "]
[null,null,"б) о выручке от регулируемой деятельности (тыс. рублей); "]
[null,null,"в) о себестоимости производимых товаров (оказываемых услуг) по регулируемому виду деятельности (тыс. рублей), включающей: "]
[null,null,"расходы на покупаемую тепловую энергию (мощность), используемую для горячего водоснабжения; "]
[null,null,"расходы на тепловую энергию, производимую с применением собственных источников и используемую для горячего водоснабжения; "]
[null,null,"расходы на покупаемую холодную воду, используемую для горячего водоснабжения; "]
[null,null,"расходы на холодную воду, получаемую с применением собственных источников водозабора (скважин) и используемую для горячего водоснабжения; "]
[null,null,"расходы на покупаемую электрическую энергию (мощность), потребляемую оборудованием, используемым в технологическом процессе, с указанием средневзвешенной стоимости 1 кВт х ч и объеме приобретения электрической энергии; "]
[null,null,"расходы на оплату труда и отчисления на социальные нужды основного производственного персонала; "]
[null,null,"расходы на амортизацию основных производственных средств и аренду имущества, используемого в технологическом процессе; "]
[null,null,"общепроизводственные (цеховые) расходы, в том числе расходы на оплату труда и отчисления на социальные нужды; "]
[null,null,"общехозяйственные (управленческие) расходы, в том числе расходы на оплату труда и отчисления на социальные нужды; "]
[null,null,"расходы на ремонт (капитальный и текущий) основных производственных средств; "]
[null,null,"расходы на услуги производственного характера, выполняемые по договорам с организациями на проведение регламентных работ в рамках технологического процесса; "]
[null,null,"г) о валовой прибыли от продажи товаров и услуг по регулируемому виду деятельности (тыс. рублей); "]
[null,null,"д) о чистой прибыли по регулируемому виду деятельности с указанием размера ее расходования на финансирование мероприятий, предусмотренных инвестиционной программой регулируемой организации по развитию системы горячего водоснабжения (тыс. рублей); "]
[null,null,"е) об изменении стоимости основных фондов, в том числе за счет ввода (вывода) их из эксплуатации (тыс. рублей); "]
[null,null,"ж) о годовой бухгалтерской отчетности, включая бухгалтерский баланс и приложения к нему (раскрывается регулируемыми организациями, выручка от регулируемой деятельности которых превышает 80 процентов совокупной выручки за отчетный год); "]
[null,null,"з) об объеме покупаемой холодной воды, используемой для горячего водоснабжения (тыс. куб. м); "]
[null,null,"и) об объеме холодной воды, получаемой с применением собственных источников водозабора (скважин) и используемой для горячего водоснабжения; "]
[null,null,"к) об объеме покупаемой тепловой энергии (мощности), используемой для горячего водоснабжения (тыс. Гкал (Гкал/ч); "]
[null,null,"л) об объеме тепловой энергии, производимой с применением собственных источников и используемой для горячего водоснабжения (тыс. Гкал); "]
[null,null,"м) об объеме отпущенной потребителям тепловой энергии (тыс. Гкал); "]
[null,null,"н) о потерях воды в сетях (процентов); "]
[null,null,"о) о протяженности водопроводных сетей (в однотрубном исчислении) (км); "]
[null,null,"п) о среднесписочной численности основного производственного персонала (человек); "]
[null,null,"р) об удельном расходе электроэнергии на подачу воды в сеть (тыс. кВт х ч или тыс. куб. м). "]
[null,null,"26. Информация об основных потребительских характеристиках регулируемых товаров и услуг регулируемых организаций и их соответствии государственным и иным утвержденным стандартам качества содержит сведения: "]
[null,null,"а) о количестве аварий на системах горячего водоснабжения (единиц на км); "]
[null,null,"б) о количестве часов (суммарно за календарный год), превышающих допустимую продолжительность перерыва подачи горячей воды, и доле потребителей, затронутых ограничениями подачи горячей воды; "]
[null,null,"в) о количестве часов (суммарно за календарный год) отклонения от нормативной температуры горячей воды в точке разбора; "]
[null,null,"г) о соответствии состава и свойств горячей воды установленным санитарным нормам и правилам. "]
[null,null,"27. Информация об инвестиционных программах и отчетах об их реализации содержит наименование соответствующей программы, а также сведения: "]
[null,null,"а) о цели инвестиционной программы; "]
[null,null,"б) о сроках начала и окончания реализации инвестиционной программы; "]
[null,null,"в) о потребностях в финансовых средствах, необходимых для реализации инвестиционной программы, в том числе с разбивкой по годам, мероприятиям и источникам финансирования инвестиционной программы (тыс. рублей); "]
[null,null,"г) о показателях эффективности реализации инвестиционной программы, а также об изменении технико-экономических показателей регулируемой организации (с разбивкой по мероприятиям); "]
[null,null,"д) об использовании инвестиционных средств за отчетный год с разбивкой по кварталам, мероприятиям и источникам финансирования инвестиционной программы (тыс. рублей). "]
[null,null,"28. В официальных печатных изданиях сведения, указанные в подпунктах \"в\" - \"д\" пункта 27 настоящего документа, публикуются в отношении мероприятий инвестиционной программы, доля расходов на реализацию каждого из которых превышает 5 процентов суммы финансирования инвестиционной программы за отчетный год. "]
[null,null,"29. Информация о наличии (отсутствии) технической возможности доступа к регулируемым товарам и услугам регулируемых организаций, а также о регистрации и ходе реализации заявок на подключение к системе горячего водоснабжения содержит сведения: "]
[null,null,"а) о количестве поданных и зарегистрированных заявок на подключение к системе горячего водоснабжения; "]
[null,null,"б) о количестве исполненных заявок на подключение к системе горячего водоснабжения; "]
[null,null,"в) о количестве заявок на подключение к системе горячего водоснабжения, по которым принято решение об отказе в подключении; "]
[null,null,"г) о резерве мощности системы горячего водоснабжения. При наличии у регулируемой организации раздельных систем горячего водоснабжения информация о резерве мощности таких систем публикуется в отношении каждой системы горячего водоснабжения. "]
[null,null,"30. Информация об условиях, на которых осуществляется поставка регулируемых товаров и (или) оказание регулируемых услуг, содержит сведения об условиях публичных договоров поставок регулируемых товаров, оказания регулируемых услуг, в том числе договоров на подключение к системе горячего водоснабжения. "]
[null,null,"31. Информация о порядке выполнения технологических, технических и других мероприятий, связанных с подключением к системе горячего водоснабжения, содержит: "]
[null,null,"а) форму заявки на подключение к системе горячего водоснабжения; "]
[null,null,"б) перечень и формы документов, представляемых одновременно с заявкой на подключение к системе горячего водоснабжения; "]
[null,null,"в) описание (со ссылкой на нормативные правовые акты) порядка действий заявителя и регулируемой организации при подаче, приеме, обработке заявки на подключение к системе горячего водоснабжения, принятии решения и уведомлении о принятом решении; "]
[null,null,"г) телефоны и адреса службы, ответственной за прием и обработку заявок на подключение к системе горячего водоснабжения. "]
[null,null,"32. Информация, указанная в пунктах 23, 30 и 31 настоящего документа, раскрывается регулируемой организацией не позднее 30 дней со дня принятия соответствующего решения об установлении тарифа (надбавки) на очередной период регулирования. "]
[null,null,"Одновременно с указанной в пункте 23 настоящего документа информацией на сайте в сети Интернет публикуются сведения о финансово-хозяйственной деятельности регулируемой организации, указанные в подпунктах \"а\" - \"д\", \"з\" - \"р\" пункта 25 и подпунктах \"а\" - \"г\" пункта 27 настоящего документа, учтенные органом исполнительной власти субъекта Российской Федерации (органом местного самоуправления) при установлении тарифов и надбавок к тарифам на очередной период регулирования. "]
[null,null,"Информация, указанная в пунктах 25-27 настоящего документа, раскрывается регулируемой организацией не позднее 30 дней со дня сдачи годового бухгалтерского баланса в налоговые органы и должна соответствовать годовой бухгалтерской отчетности за отчетный год. "]
[null,null,"Одновременно с указанной в пункте 25 настоящего документа информацией о расходах на ремонт (капитальный и текущий) основных производственных средств и расходах на услуги производственного характера, выполняемых по договорам с организациями на проведение регламентных работ в рамках технологического процесса, на сайте в сети Интернет публикуется информация об объемах товаров и услуг, их стоимости и способах приобретения у тех организаций, сумма оплаты услуг которых превышает 20 процентов суммы расходов по каждой из указанных статьей расходов. "]
[null,null,"При этом указывается информация о поставке товаров и услуг, стоимость которых превышает 20 процентов суммы поставки товаров и услуг каждой из этих организаций. "]
[null,null,"Информация, указанная в пункте 29 настоящего документа, раскрывается регулируемой организацией ежеквартально."]

{"sheet":"Лог обновления","index":2,"n_rows":6,"n_cols":4,"rows_kept":6,"cut":false,"hidden":true,"merged":[]}
[]
["3/17/2012  12:12:41 AM","Дата/Время","Сообщение","Статус"]
[null,"12/26/2013  10:53:59 AM","Проверка доступных обновлений...","Информация"]
[null,"12/26/2013  10:54:01 AM","Версия шаблона 5.2 актуальна, обновление не требуется","Информация"]
[null,"2/12/2014  4:27:50 PM","Проверка доступных обновлений...","Информация"]
[null,"2/12/2014  4:27:51 PM","Версия шаблона 5.2 актуальна, обновление не требуется","Информация"]

{"sheet":"Выбор субъекта РФ","index":3,"n_rows":2,"n_cols":8,"rows_kept":2,"cut":false,"hidden":true,"merged":[[1,1,2,6]]}
[null,2,2936574,null,null,null,0]
[null,"Амурская область",null,null,null,null,null,0]

{"sheet":"Титульный","index":4,"n_rows":78,"n_cols":7,"rows_kept":78,"cut":false,"hidden":false,"merged":[[46,5,46,6],[57,2,59,2],[57,4,58,4],[61,5,61,6],[48,5,48,6],[49,5,49,6],[50,5,50,6],[63,5,63,6],[51,5,51,6],[70,5,70,6],[69,5,69,6],[66,5,66,6],[55,5,55,6],[18,5,18,6],[40,5,40,6],[44,5,44,6],[26,5,26,6],[27,5,27,6],[29,5,29,6],[32,5,32,6],[22,5,22,6],[1,5,1,7],[2,5,2,7],[10,5,10,6],[14,5,14,6],[3,3,3,7],[12,5,12,6],[6,5,6,6],[8,5,8,6],[11,5,11,6],[77,5,77,6],[65,5,65,6],[76,5,76,6],[74,5,74,6],[73,5,73,6],[67,5,67,6],[75,5,75,6],[71,5,71,6],[15,5,15,6],[24,5,24,6],[42,5,42,6],[62,5,62,6],[36,5,36,6],[16,5,16,6],[38,5,38,6],[33,5,33,6],[34,5,34,6],[35,5,35,6]]}
[{"$f":"region_name","v":"Амурская область"},null,{"$f":"org&\"_INN:\"&inn&\"_KPP:\"&kpp","v":"ОАО \"Амурские коммунальные системы\"_INN:2801091892_KPP:280101001"}]
[{"$f":"IF(org=\"\",\"Не определено\",org)","v":"ОАО \"Амурские коммунальные системы\""},{"$f":"IF(inn=\"\",\"Не определено\",inn)","v":"2801091892"},null,null,null,{"$f":"code","v":"Код шаблона: JKH.OPEN.INFO.PRICE.GVS"}]
[null,null,null,null,null,{"$f":"version","v":"Версия 5.2"}]
[{"$f":"IF(fil=\"\",\"Не определено\",fil)","v":"Не определено"},{"$f":"IF(kpp=\"\",\"Не определено\",kpp)","v":"280101001"},null,{"$f":"\"Показатели, подлежащие раскрытию в сфере \"&TSphere_full&\" (Цены и тарифы)\"","v":"Показатели, подлежащие раскрытию в сфере горячего водоснабжения (Цены и тарифы)"}]
[]
[null,null,null,null,"Создать печатную форму"]
[null,null,null,null,"Субъект РФ","Амурская область"]
[]
[null,null,null,null,"Публикация","На сайте регулирующего органа"]
[]
[null,null,null,null,null,"Источники публикации"]
[null,null,null,null,{"$f":"\"Сайт\"&IF(strPublication=\"На официальном сайте организации\",\" организации \",\" \")&\"в сети Интернет\"","v":"Сайт в сети Интернет"},"a"]
[null,null,null,null,"Печатное издание"]
[]
[null,null,null,null,null,"Период регулирования"]
[null,null,null,null,"Начало очередного периода регулирования","01.01.2014"]
[null,null,null,null,"Окончание очередного периода регулирования","31.12.2014"]
[]
["L0","Признак филиала",null,null,"Является ли данное юридическое лицо подразделением (филиалом) другой организации","нет"]
[]
[null,null,null,null,"Дата последнего обновления реестра организаций: 26.12.2013 10:54:17"]
[66]
[null,null,null,null,"Наименование организации","ОАО \"Амурские коммунальные системы\""]
[]
[null,null,null,null,"Наименование ПОДРАЗДЕЛЕНИЯ"]
[]
[null,null,null,null,"ИНН","2801091892"]
[null,null,null,null,"КПП","280101001"]
[]
[null,null,null,null,"Вид деятельности","Оказание услуг в сфере горячего водоснабжения"]
[]
[]
[null,null,null,null,null,"НДС (отметка об учтенном НДС)"]
[null,null,null,null,"Организации-перепродавцы","тариф не утверждался"]
[null,null,null,null,"Бюджетные потребители","тариф не утверждался"]
[null,null,null,null,"Население","тариф с НДС организаций-плательщиков НДС"]
[null,null,null,null,"Прочие","тариф указан без НДС для плательщиков НДС"]
[]
[null,null,null,null,"Организация выполняет инвестиционную программу","нет"]
[]
[null,null,null,null,"Наличие 2-ставочного тарифа","нет"]
[]
[null,null,null,null,"Единица измерения ставки платы за содержание системы ГВС"]
[]
[null,null,null,null,"Применить автозаполнение значения тарифа","нет"]
[]
["да",null,null,null,"Тариф установлен с учетом компонентов","да"]
[]
[null,null,null,null,null,{"$f":"\"Система \"&IF(TSphere=\"ТС\",\"теплоснабжения\",\"коммунальной инфраструктуры\")","v":"Система коммунальной инфраструктуры"}]
[null,null,null,null,"Условный порядковый номер","1"]
[null,null,null,null,"Вид","закрытая"]
[null,null,null,null,"Описание","город Благовещенск"]
[]
[null,null,null,null,"Дата последнего обновления реестра МР/МО: 26.12.2013 11:00:55"]
[]
[null,null,null,null,{"$f":"\"Муниципальный район, на территории которого \" & IF(TSphere = \"ТБО\", \"оказывает услуги данная организация\", \"размещена система \"&IF(TSphere = \"ТС\",\"теплоснабжения\",\"коммунальной инфраструктуры\"))","v":"Муниципальный район, на территории которого размещена система коммунальной инфраструктуры"},{"$f":"\"Муниципальное образование, на территории которого \" & IF(TSphere = \"ТБО\", \"оказывает услуги данная организация\", \"размещена система \"&IF(TSphere = \"ТС\",\"теплоснабжения\",\"коммунальной инфраструктуры\"))","v":"Муниципальное образование, на территории которого размещена система коммунальной инфраструктуры"}]
[null,null,null,null,"Наименование МР","Наименование МО","ОКТМО"]
[null,null,null,null,"Город Благовещенск","Город Благовещенск","10701000"]
[null,null,null,null,null,"Добавить МО"]
[null,null,null,null,"Добавить МР"]
[]
[null,null,null,null,null,"Адрес организации"]
[null,null,null,null,"Юридический адрес:","67500, Амурская область, город Благовещенск, ул. Амурская, 296"]
[null,null,null,null,"Почтовый адрес:","67500, Амурская область, город Благовещенск, ул. Амурская, 296"]
[]
[null,null,null,null,null,"Руководитель"]
[null,null,null,null,"Фамилия, имя, отчество:","Куприна Наталия Юрьевна"]
[null,null,null,null,"(код) номер телефона:","8 (4162) 220-737"]
[]
[null,null,null,null,null,"Главный бухгалтер"]
[null,null,null,null,"Фамилия, имя, отчество:","Тырина Анна Борисовна"]
[null,null,null,null,"(код) номер телефона:","8(4162) 220-735"]
[]
[null,null,null,null,null,"Должностное лицо, ответственное за составление формы"]
[null,null,null,null,"Фамилия, имя, отчество:","Белобородова Елена Сергеевна"]
[null,null,null,null,"Должность:","Ведущий специалист сектора тарифообразования"]
[null,null,null,null,"(код) номер телефона:","8(4162) 220-733"]
[null,null,null,null,"e-mail:","e.beloborodova@amurcomsys.ru"]

{"sheet":"ГВС цены","index":5,"n_rows":42,"n_cols":26,"rows_kept":42,"cut":false,"hidden":false,"merged":[[34,24,39,24],[34,25,39,25],[34,4,39,4],[34,19,39,19],[34,20,39,20],[34,21,39,21],[34,22,39,22],[34,23,39,23],[15,4,17,4],[15,5,17,6],[15,21,16,22],[15,25,17,25],[16,8,16,9],[16,10,17,10],[16,14,16,15],[16,17,16,18],[15,13,15,15],[22,22,27,22],[28,19,33,19],[28,20,33,20],[28,21,33,21],[28,22,33,22],[28,25,33,25],[22,25,27,25],[22,24,27,24],[22,23,27,23],[28,24,33,24],[28,23,33,23],[22,4,27,4],[22,21,27,21],[22,20,27,20],[22,19,27,19],[11,4,11,25],[12,4,12,25],[15,7,15,9],[16,7,17,7],[15,10,15,12],[18,5,18,6],[28,4,33,4],[15,24,17,24],[16,16,17,16],[15,20,17,20],[15,16,15,18],[15,23,17,23],[15,19,17,19],[16,11,16,12],[16,13,17,13]]}
[null,null,null,null,"colorIndexCells","34","2",2,2,2,2,2,2,34,2,2,34,2,2,"37","37","37","34","34","34","36"]
[]
[null,null,null,null,null,null,"offsetForFormulsPrice(TP1/2)",null,null,null,null,null,null,null,null,null,null,null,null,-3]
[]
[]
[]
[]
[]
[]
[null,null,null,{"$f":"code","v":"Код шаблона: JKH.OPEN.INFO.PRICE.GVS"}]
[]
[null,null,null,null,"Информация о ценах (тарифах) на регулируемые товары и услуги и надбавках к этим ценам (тарифам) *"]
[null,null,null,null,{"$f":"IF(org=\"\",\"\",IF(fil=\"\",org,org & \" (\" & fil & \")\")) & IF(OR(godStart=\"\",godEnd=\"\"),\"\",\", \"&YEAR(godStart)& \"-\" & YEAR(godEnd)&\" гг.\")","v":"ОАО \"Амурские коммунальные системы\", 2014-2014 гг."}]
[]
[]
[null,null,null,null,"№ п/п",{"$f":"IF(TSphere=\"ТС\",\"Утвержденный тариф на тепловую энергию (мощность)/ дифференциация по видам теплоносителя\",\"Наименование показателя\")","v":"Наименование показателя"},null,{"$f":"\"Организации-перепродавцы\"& IF(NDS_org=\"тариф указан с НДС для плательщиков НДС\",\", с учётом НДС\",IF(NDS_org=\"тариф указан без НДС для плательщиков НДС\",\", без учёта НДС\",\"\"))","v":"Организации-перепродавцы"},null,null,{"$f":"\"Бюджетные потребители\"& IF(NDS_budget=\"тариф указан с НДС для плательщиков НДС\",\", с учётом НДС\",IF(NDS_budget=\"тариф указан без НДС для плательщиков НДС\",\", без учёта НДС\",\"\"))","v":"Бюджетные потребители"},null,null,{"$f":"\"Население\"& IF(NDS_pop=\"тариф с НДС организаций-плательщиков НДС\",\", с учётом НДС\",\"\")","v":"Население, с учётом НДС"},null,null,{"$f":"\"Прочие\"& IF(NDS_etc=\"тариф указан с НДС для плательщиков НДС\",\", с учётом НДС\",IF(NDS_etc=\"тариф указан без НДС для плательщиков НДС\",\", без учёта НДС\",\"\"))","v":"Прочие, без учёта НДС"},null,null,"Дата ввода","Срок действия","Постановление",null,"Наименование регулирующего органа, принявшего решение об утверждении цен","Источник официального опубликования органом, принявшим решение об утверждении цены (тарифа, надбавки)","Примечание"]
[null,null,null,null,null,null,null,{"$f":"\"Одноставочный тариф\"&IF(TSphere=\"ТС\",\", руб./Гкал\",IF(TSphere=\"ГВС\",\"\",\", руб./куб.м\"))","v":"Одноставочный тариф"},"Двухставочный тариф",null,{"$f":"\"Одноставочный тариф\"&IF(TSphere=\"ТС\",\", руб./Гкал\",IF(TSphere=\"ГВС\",\"\",\", руб./куб.м\"))","v":"Одноставочный тариф"},"Двухставочный тариф",null,{"$f":"\"Одноставочный тариф\"&IF(TSphere=\"ТС\",\", руб./Гкал\",IF(TSphere=\"ГВС\",\"\",\", руб./куб.м\"))","v":"Одноставочный тариф"},"Двухставочный тариф",null,{"$f":"\"Одноставочный тариф\"&IF(TSphere=\"ТС\",\", руб./Гкал\",IF(TSphere=\"ГВС\",\"\",\", руб./куб.м\"))","v":"Одноставочный тариф"},"Двухставочный тариф"]
[null,null,null,null,null,null,null,null,{"$f":"\"ставка \"&IF(TSphere=\"ТС\",\"за энергию\",IF(TSphere=\"ГВС\",\"платы за потребление горячей воды\",IF(TSphere=\"ХВС\",\"платы за потребление холодной воды\",\"платы за водоотведение или очистку сточных вод\")))&IF(TSphere=\"ТС\",\", руб./Гкал\",IF(TSphere=\"ГВС\",\"\",\", руб./куб.м\"))","v":"ставка платы за потребление горячей воды"},{"$f":"\"ставка \"&IF(TSphere=\"ТС\",\"за мощность\",\"платы за содержание системы \"&TSphere_full)&IF(TSphere=\"ТС\",\", тыс.руб.в месяц/Гкал/ч\",IF(TSphere=\"ГВС\",\"\",\", тыс. руб. в месяц/куб.м/ч\"))","v":"ставка платы за содержание системы горячего водоснабжения"},null,{"$f":"\"ставка \"&IF(TSphere=\"ТС\",\"за энергию\",IF(TSphere=\"ГВС\",\"платы за потребление горячей воды\",IF(TSphere=\"ХВС\",\"платы за потребление холодной воды\",\"платы за водоотведение или очистку сточных вод\")))&IF(TSphere=\"ТС\",\", руб./Гкал\",IF(TSphere=\"ГВС\",\"\",\", руб./куб.м\"))","v":"ставка платы за потребление горячей воды"},{"$f":"\"ставка \"&IF(TSphere=\"ТС\",\"за мощность\",\"платы за содержание системы \"&TSphere_full)&IF(TSphere=\"ТС\",\", тыс.руб.в месяц/Гкал/ч\",IF(TSphere=\"ГВС\",\"\",\", тыс. руб. в месяц/куб.м/ч\"))","v":"ставка платы за содержание системы горячего водоснабжения"},null,{"$f":"\"ставка \"&IF(TSphere=\"ТС\",\"за энергию\",IF(TSphere=\"ГВС\",\"платы за потребление горячей воды\",IF(TSphere=\"ХВС\",\"платы за потребление холодной воды\",\"платы за водоотведение или очистку сточных вод\")))&IF(TSphere=\"ТС\",\", руб./Гкал\",IF(TSphere=\"ГВС\",\"\",\", руб./куб.м\"))","v":"ставка платы за потребление горячей воды"},{"$f":"\"ставка \"&IF(TSphere=\"ТС\",\"за мощность\",\"платы за содержание системы \"&TSphere_full)&IF(TSphere=\"ТС\",\", тыс.руб.в месяц/Гкал/ч\",IF(TSphere=\"ГВС\",\"\",\", тыс. руб. в месяц/куб.м/ч\"))","v":"ставка платы за содержание системы горячего водоснабжения"},null,{"$f":"\"ставка \"&IF(TSphere=\"ТС\",\"за энергию\",IF(TSphere=\"ГВС\",\"платы за потребление горячей воды\",IF(TSphere=\"ХВС\",\"платы за потребление холодной воды\",\"платы за водоотведение или очистку сточных вод\")))&IF(TSphere=\"ТС\",\", руб./Гкал\",IF(TSphere=\"ГВС\",\"\",\", руб./куб.м\"))","v":"ставка платы за потребление горячей воды"},{"$f":"\"ставка \"&IF(TSphere=\"ТС\",\"за мощность\",\"платы за содержание системы \"&TSphere_full)&IF(TSphere=\"ТС\",\", тыс.руб.в месяц/Гкал/ч\",IF(TSphere=\"ГВС\",\"\",\", тыс. руб. в месяц/куб.м/ч\"))","v":"ставка платы за содержание системы горячего водоснабжения"},null,null,"дата","номер"]
[null,null,null,null,1,"2",null,3,"3.1","3.2","4","4.1","4.2","5","5.1","5.2","6","6.1","6.2","7","8","9.1","9.2","10","11","12"]
[null,null,null,null,1,{"$f":"\"Утвержденный тариф на горячую воду\"","v":"Утвержденный тариф на горячую воду"}]
[null,null,null,null,1]
[null,null,null,null,null,"Добавить запись"]
[null,null,null,null,1,{"$f":"IF(type_SKI_GVS=\"закрытая\",\"Компонент на холодную воду, руб./куб.м\",IF(type_SKI_GVS=\"открытая\",\"Компонент на теплоноситель, руб/куб.м\",\"Не определен вид системы коммунальной инфраструктуры\"))","v":"Компонент на холодную воду, руб./куб.м"},null,null,null,null,null,null,null,null,null,null,null,null,null,"01.01.2014","30.06.2014","10.01.2014","  \n№1-пр/в","Управление государственного регулирования цен и тарифов Амурской области","Приказ УГРЦиТ Амурской области №262 пр/в от 18.12.2013г. (газета \"Амурская правда\" № 242 от 24.12.2013 г.) в редакции Приказа УГРЦиТ №1-пр/в от 10.01.2014г. (опубликован в газете \"Амурская правда\" №8 от 18.01.2014)"]
[null,null,null,null,null,"ОАО \"Амурские коммунальные системы\"",null,null,null,null,null,null,null,20.95,null,null,17.75]
[null,null,null,null,null,"Добавить компонент"]
[null,null,null,null,null,"Компонент на тепловую энергию, руб./Гкал"]
[null,null,null,null,null,"ОАО \"Амурские коммунальные системы\"",null,null,null,null,null,null,null,1490.94,null,null,1263.51]
[null,null,null,null,null,"Добавить компонент"]
[null,null,null,null,1,{"$f":"IF(type_SKI_GVS=\"закрытая\",\"Компонент на холодную воду, руб./куб.м\",IF(type_SKI_GVS=\"открытая\",\"Компонент на теплоноситель, руб/куб.м\",\"Не определен вид системы коммунальной инфраструктуры\"))","v":"Компонент на холодную воду, руб./куб.м"}]
[]
[null,null,null,null,null,"Добавить компонент"]
[null,null,null,null,null,"Компонент на тепловую энергию, руб./Гкал"]
[]
[null,null,null,null,null,"Добавить компонент"]
[null,null,null,"ы","2",{"$f":"IF(type_SKI_GVS=\"закрытая\",\"Компонент на холодную воду, руб./куб.м\",IF(type_SKI_GVS=\"открытая\",\"Компонент на теплоноситель, руб/куб.м\",\"Не определен вид системы коммунальной инфраструктуры\"))","v":"Компонент на холодную воду, руб./куб.м"},null,null,null,null,null,null,null,null,null,null,null,null,null,"01.07.2014","31.12.2014","10.01.2014","№1-пр/в","Управление государственного регулирования цен и тарифов Амурской области","Приказ УГРЦиТ Амурской области №262 пр/в от 18.12.2013г. (газета \"Амурская правда\" № 242 от 24.12.2013 г.) в редакции Приказа УГРЦиТ №1-пр/в от 10.01.2014г. (опубликован в газете \"Амурская правда\" №8 от 18.01.2014)"]
[null,null,null,null,null,"ОАО \"Амурские коммунальные системы\"",null,null,null,null,null,null,null,18.149999999999999,null,null,21.42]
[null,null,null,null,null,"Добавить компонент"]
[null,null,null,null,null,"Компонент на тепловую энергию, руб./Гкал"]
[null,null,null,null,null,"ОАО \"Амурские коммунальные системы\"",null,null,null,null,null,null,null,1490.94,null,null,1263.51]
[null,null,null,null,null,"Добавить компонент"]
[null,null,null,null,null,"Добавить запись"]
[null,null,null,null,"*","Раскрывается не позднее 30 дней со дня принятия соответствующего решения об установлении тарифа (надбавки) на очередной период регулирования "]

{"sheet":"ГВС цены (2)","index":6,"n_rows":28,"n_cols":17,"rows_kept":28,"cut":false,"hidden":false,"merged":[[20,4,21,4],[20,5,21,5],[11,4,11,15],[12,4,12,15],[15,5,15,7],[16,5,16,7],[24,4,25,4],[24,5,25,5],[17,4,19,4],[17,5,19,5],[22,4,23,4],[22,5,23,5]]}
[null,null,null,null,null,null,null,null,null,"colorIndexCellsPrice2","34","37","37","37","34","34","34"]
[null,null,null,null,null,null,null,null,null,null,"2","2","2","2","2","2","2"]
[]
[]
[]
[]
[]
[]
[]
[null,null,{"$f":"code","v":"Код шаблона: JKH.OPEN.INFO.PRICE.GVS"}]
[]
[null,null,null,null,"Информация о ценах (тарифах) на регулируемые товары и услуги и надбавках к этим ценам (тарифам)*"]
[null,null,null,null,{"$f":"IF(org=\"\",\"\",IF(fil=\"\",org,org & \" (\" & fil & \")\")) & IF(OR(godStart=\"\",godEnd=\"\"),\"\",\", \"&YEAR(godStart)& \"-\" & YEAR(godEnd)&\" гг.\")","v":"ОАО \"Амурские коммунальные системы\", 2014-2014 гг."}]
[]
[]
[null,null,null,null,"№ п/п","Наименование показателя",null,null,"Единица измерения","Тариф/надбавка к ценам (тарифам) утверждена","Значение","Дата ввода","Срок действия","Постановление (дата)","Постановление (номер)","Наименование регулирующего органа, принявшего решение об утверждении цен","Источник официального опубликования органом, принявшим решение об утверждении цены (тарифа, надбавки)"]
[null,null,null,null,1,2,null,null,"3",4,"5","6","7","8.1","8.2","9","10"]
[null,null,null,null,"1","Утвержденная надбавка к ценам (тарифам) на горячую воду для потребителей","для населения",null,"руб./куб. м","нет"]
[null,null,null,null,null,null,"для бюджетных потребителей",null,"руб./куб. м","нет"]
[null,null,null,null,null,null,"для прочих потребителей",null,"руб./куб. м","нет"]
[null,null,null,null,"2","Утвержденная надбавка к тарифам регулируемых организаций на горячую воду","для бюджетных потребителей",null,"руб./куб. м","нет"]
[null,null,null,null,null,null,"для прочих потребителей",null,"руб./куб. м","нет"]
[null,null,null,null,"3","Утвержденный тариф на подключение создаваемых (реконструируемых) объектов недвижимости к системе горячего водоснабжения","для бюджетных потребителей",null,"руб./куб. м/час","нет"]
[null,null,null,null,null,null,"для прочих потребителей",null,"руб./куб. м/час","нет"]
[null,null,null,null,"4","Утвержденный тариф регулируемых организаций на подключение к системе горячего водоснабжения","для бюджетных потребителей",null,"руб./куб. м/час","нет"]
[null,null,null,null,null,null,"для прочих потребителей",null,"руб./куб. м/час","нет"]
[null,null,null,null,null,"Добавить запись"]
[null,null,null,null,"*","Раскрывается не позднее 30 дней со дня принятия соответствующего решения об установлении тарифа (надбавки) на очередной период регулирования "]

{"sheet":"Ссылки на публикации","index":7,"n_rows":22,"n_cols":12,"rows_kept":22,"cut":false,"hidden":false,"merged":[[5,3,5,5],[6,3,6,12],[7,3,7,12],[10,4,10,10]]}
[]
[]
[]
[]
[]
[null,null,null,{"$f":"code","v":"Код шаблона: JKH.OPEN.INFO.PRICE.GVS"}]
[null,null,null,{"$f":"\"Ссылки на публикации \"&IF(strPublication=\"На официальном сайте организации\",\"на официальном сайте организации\",\"в других источниках\")","v":"Ссылки на публикации в других источниках"}]
[null,null,null,{"$f":"IF(org=\"\",\"\",IF(fil=\"\",org,org & \" (\" & fil & \")\")) & IF(OR(godStart=\"\",godEnd=\"\"),\"\",\", \"&YEAR(godStart)& \"-\" & YEAR(godEnd)&\" гг.\")","v":"ОАО \"Амурские коммунальные системы\", 2014-2014 гг."}]
[]
[]
[null,null,null,null,{"$f":"\"Указание на официальное печатное издание и (или) адрес сайта\"&IF(strPublication=\"На официальном сайте организации\",\" организации \",\" \")&\"в сети Интернет, которые используются для размещения раскрываемой информации *\"","v":"Указание на официальное печатное издание и (или) адрес сайта в сети Интернет, которые используются для размещения раскрываемой информации *"}]
[null,null,null,null,null,null,null,"True"]
[null,null,null,null,"№ п/п","Содержание","Наименование источника",null,"Дата размещения информации","Номер печатного издания","Дата печатного издания",{"$f":"IF(strPublication=\"На официальном сайте организации\",\"Адрес страницы официального сайта организации в сети интернет, на которой размещена раскрываемая информация\",\"Адрес сайта в сети Интернет\")","v":"Адрес сайта в сети Интернет"}]
[null,null,null,null,1,{"$f":"E14+1","v":2},3,3,{"$f":"H14+1","v":4},{"$f":"I14+1","v":5},{"$f":"J14+1","v":6},{"$f":"K14+1","v":7}]
[null,null,null,null,"1","Информация о ценах на регулируемые товары и услуги и надбавках к этим ценам **"]
[null,null,null,null,"1.1",{"$f":"\"Сайт\"&IF(strPublication=\"На официальном сайте организации\",\" организации \",\" \")&\"в сети Интернет\"","v":"Сайт в сети Интернет"},"официальный сайт общества",null,"28.01.2014","x","x","http://www.amurcomsys.ru/"]
[null,null,null,null,"1.2","Печатное издание",null,null,null,null,null,"x"]
[null,null,null,null,"1"]
[null,null,null,null,null,"Добавить запись"]
[null,null,null,null,"*","Источники публикации сообщаются в течение 5 рабочих дней со дня размещения информации на сайте в сети Интернет."]
[null,null,null,null,null,"Информация раскрывается не позднее 30 дней со дня принятия соответствующего решения об установлении тарифа(надбавки) на очередной период регулирования."]
[null,null,null,null,"**","Информация подлежит публикованию в официальных печатных изданиях (со ссылкой на адрес сайта в сети Интернет)"]

{"sheet":"Комментарии","index":8,"n_rows":13,"n_cols":6,"rows_kept":13,"cut":false,"hidden":false,"merged":[[6,3,6,5],[7,3,7,5]]}
[]
[]
[]
[]
[]
[null,null,null,{"$f":"code","v":"Код шаблона: JKH.OPEN.INFO.PRICE.GVS"}]
[null,null,null,"КОММЕНТАРИИ"]
[null,null,null,{"$f":"IF(org=\"\",\"\",IF(fil=\"\",org,org & \" (\" & fil & \")\")) & IF(OR(godStart=\"\",godEnd=\"\"),\"\",\", \"&YEAR(godStart)& \"-\" & YEAR(godEnd)&\" гг.\")","v":"ОАО \"Амурские коммунальные системы\", 2014-2014 гг."}]
[]
[null,null,null,null,"№ п/п","Комментарий"]
[null,null,null,null,1,{"$f":"E11+1","v":2}]
[null,null,null,null,1]
[null,null,null,null,null,"Добавить комментарий"]

{"sheet":"Проверка","index":9,"n_rows":14,"n_cols":8,"rows_kept":14,"cut":false,"hidden":false,"merged":[[7,4,7,7]]}
[]
[]
[]
[]
[]
[]
[]
[null,null,null,null,"Результаты проверки"]
[]
[null,null,null,null,"Ссылка 1","Ссылка 2","Описание причины","Обязательность выполнения"]
[null,null,null,null,"Титульный!F13",null,"Не указан источник информации: 'Печатное издание' на листе 'Титульный'!","Предупреждение"]
[null,null,null,null,"ГВС цены!Z23",null,"Не указано значение на листе 'ГВС цены'!","Предупреждение"]
[null,null,null,null,"ГВС цены!Z35",null,"Не указано значение на листе 'ГВС цены'!","Предупреждение"]
[null,null,null,null,"Ссылки на публикации!L16",null,"Не верно указана гиперссылка в поле 'Адрес сайта в сети Интернет' на листе 'Ссылки на публикации'!","Предупреждение"]

{"sheet":"CheckCopy","index":10,"n_rows":10,"n_cols":8,"rows_kept":10,"cut":false,"hidden":true,"merged":[[7,4,7,7]]}
[]
[]
[]
[]
[]
[]
[]
[null,null,null,null,"Результаты проверки"]
[]
[null,null,null,null,"Ссылка 1","Ссылка 2","Описание причины","Обязательность выполнения"]

{"sheet":"AllSheetsInThisWorkbook","index":11,"n_rows":34,"n_cols":2,"rows_kept":34,"cut":false,"hidden":true,"merged":[]}
["Расчетные листы","Скрытые листы"]
["Инструкция","CheckCopy"]
["Справочная информация","AllSheetsInThisWorkbook"]
["Лог обновления","et_union"]
["Выбор субъекта РФ","TEHSHEET"]
["Титульный","modInfo"]
["ГВС цены","REESTR_ORG"]
["ГВС цены (2)","modHyperlink"]
["Ссылки на публикации","modChange"]
["Комментарии","modTitleSheetHeaders"]
["Проверка","modServiceModule"]
[null,"modClassifierValidate"]
[null,"Паспорт"]
[null,"REESTR_FILTERED"]
[null,"REESTR_MO"]
[null,"modfrmReestr"]
[null,"modDblClick"]
[null,"modfrmDateChoose"]
[null,"modfrmSphereChoose"]
[null,"modReestrMO"]
[null,"modSheetMain01"]
[null,"modSheetMain02"]
[null,"modSheetMain03"]
[null,"modSheetMain04"]
[null,"modSheetMain05"]
[null,"modSheetMain06"]
[null,"modSheetMain07"]
[null,"modSheetMain08"]
[null,"modUpdTemplMain"]
[null,"modRegionSelectSub"]
[null,"modfrmCheckUpdates"]
[null,"modCommonProv"]
[null,"modProvGeneralProc"]
[null,"modThisWorkbook"]

{"sheet":"et_union","index":12,"n_rows":23,"n_cols":20,"rows_kept":23,"cut":false,"hidden":true,"merged":[[9,4,10,4]]}
[]
["add_HYPERLINK_range"]
[]
[]
[]
[]
["add_MR_range"]
["add_MO_range"]
[]
[]
[null,null,null,null,null,"Добавить МО"]
[]
["add_COMMENTS_range"]
[]
[]
[]
["add_PRICE_2_range"]
[]
[null,null,null,null,null,null,null,null,null,null,null,null,null,null,null,null,null,null,null,{"$f":"IF(K19=\"\",0,1)","v":0}]
[]
["add_PRICE_2_TBO_range"]
[]
[null,null,null,null,null,null,null,null,null,null,null,null,null,null,null,null,null,null,null,{"$f":"IF(K23=\"\",0,1)","v":0}]

{"sheet":"TEHSHEET","index":13,"n_rows":85,"n_cols":96,"rows_kept":85,"cut":false,"hidden":true,"merged":[[0,17,0,18]]}
["Логика","Кварталы","Года","Единица измерения","Месяц-текст","Месяц-число","Номер СКИ\n/SKI_number/","День-число","Регионы","Вид деятельности","Источники финансирования","Единица измерения","Вид тарифа на передачу тепловой энергии /kind_of_tariff_unit/","НДС\n/kind_of_NDS/","цель инвестиционной программы /objective_of_IPR/","цель инвестиционной программы /kind_of_purchase_method/","наименование источника\n/kind_of_name_source/","Виды топлива\n/kind_of_fuels/",null,"регионы-исключения\n/region_exception/",null,"версия шаблона\n (DocProp_Version)","5.2",null,"Вид теплоносителя\n(kind_of_heat_transfer)",null,"Единица измерения ставки платы за содержание системы ГВС\n(kind_of_unit_GVS)","Тип потребителей\n(kind_of_consumers)","Тип показателя\n(type_indicator)",null,"Вид СКИ для ГВС\n(kind_of_type_SKI_GVS)",null,null,null,null,null,null,null,null,null,null,null,null,null,null,null,null,null,null,null,null,null,null,null,null,null,null,null,null,null,null,null,null,null,null,null,null,null,null,null,null,null,null,null,null,null,null,null,null,null,null,null,null,null,null,null,null,null,null,null,null,null,null,null,null,"5.86"]
["да","I квартал",2006,"тыс.руб.","январь","01","1","01","Алтайский край","Оказание услуг в сфере водоотведения и очистки сточных вод","кредиты банков","тыс.куб м/сутки","руб./Гкал/ч/мес","тариф указан с НДС для плательщиков НДС","автоматизация (с уменьшением штата)","торги/аукционы","наименование источника","газ природный по регулируемой цене","тыс. м3","Краснодарский край",null,"код шаблона\n(DocProp_TemplateCode)","JKH.OPEN.INFO.PRICE.GVS",null,"горячая вода",null,"Гкал в час","для населения","по объему",null,"закрытая"]
["нет","II квартал",2007,"млн.руб.","февраль","02","2","02","Амурская область","Оказание услуг по перекачке","кредиты иностранных банков","Гкал/час","руб./Гкал","тариф указан без НДС для плательщиков НДС","уменьшение удельных затрат (повышение КПД)","прямые договора без торгов","не раскрывалась","газ природный по нерегулируемой цене","тыс. м3","Кировская область",null,"сфера\n(TSphere)","ГВС",null,"отборный пар, всего",null,"тыс. руб. в месяц/куб.м/ч","для бюджетных потребителей","по тоннажу",null,"открытая"]
[null,"III квартал",2008,null,"март","03","3","03","Архангельская область","Оказание услуг в сфере водоснабжения, водоотведения и очистки сточных вод","заемные ср-ва др. организаций","куб.м/час",null,"тариф для организаций не являющихся плательщиками НДС","уменьшение издержек на производство","прочее",null,"газ сжиженный","кг","Республика Башкортостан",null,"сфера(латиница)\n(TSphere_trans)","GVS",null,"отборный пар, 1,2-2,5 кг/см2",null,null,"для прочих потребителей"]
[null,"IV квартал",2009,null,"апрель","04","4","04","Астраханская область",null,"федеральный бюджет",null,null,"тариф не утверждался","снижение аварийности",null,null,"газовый конденсат","тонны","г.Санкт-Петербург",null,"сфера расширено\n(TSphere_full)","горячего водоснабжения",null,"отборный пар, 2,5-7 кг/см2"]
[null,null,2010,null,"май","05","5","05","Белгородская область","Вид деятельности, на которую установлен тариф /kind_of_activity_WARM/","бюджет субъекта РФ",null,null,"НДС\n/kind_of_NDS_TBO/","прочее",null,null,"гшз","тонны","Чувашская республика",null,"признак общего шаблона\n(flag_main_template)","False",null,"отборный пар, 7-13 кг/см2"]
[null,null,2011,null,"июнь","06","6","06","Брянская область","Комбинированная выработка","бюджет муниципального образования",null,null,"отчетность представлена без НДС",null,null,null,"мазут","тонны","Пермский край",null,"Наименование показателя для листа Цены\n(Tfirst_index_for_price)","Утвержденный тариф на горячую воду",null,"отборный пар, > 13 кг/см2"]
[null,null,2012,null,"июль","07","7","07","Владимирская область","Некомбинированная выработка","ср-ва внебюджетных фондов",null,null,"отчетность представлена с учетом освобождения от НДС",null,null,null,"нефть","тонны","Республика Татарстан",null,null,null,null,"острый редуцированный пар"]
[null,null,2013,null,"август","08","8","08","Волгоградская область","Нет производства т/э","прибыль, направляемая на инвестиции",null,null,"отчетность представлена с НДС",null,null,null,"дизельное топливо","тонны","Иркутская область",null,null,null,null,"горячая вода в системе централизованного теплоснабжения на отопление"]
[null,null,2014,null,"сентябрь","09","9","09","Вологодская область","Смешанное производство","амортизация",null,null,"НДС\n/kind_of_NDS_people/",null,null,null,"уголь бурый","тонны","Алтайский край",null,null,null,null,"горячая вода в системе централизованного теплоснабжения на горячее водоснабжение"]
[null,null,2015,null,"октябрь",10,"10",10,"Воронежская область","Вид деятельности, на которую установлен тариф /kind_of_activity_HVS/","инвестиционная надбавка к тарифу",null,null,"тариф с НДС организаций-плательщиков НДС",null,null,null,"уголь каменный","тонны",null,null,null,null,null,"другой"]
[null,null,null,null,"ноябрь",11,"11",11,"г.Байконур","Водоснабжение (подъем, очистка, транспортировка)","плата за подключение",null,null,"тариф организаций не являющихся плательщиками НДС",null,null,null,"торф","тонны"]
[null,null,null,null,"декабрь",12,"12",12,"г. Москва","Подъем","прочие средства",null,null,"тариф не утверждался",null,null,null,"дрова","м3"]
[null,null,null,null,null,null,"13",13,"г.Санкт-Петербург","Транспортировка",null,null,null,null,null,null,null,"опил","м3"]
[null,null,null,null,null,null,"14",14,"Еврейская автономная область","Вид деятельности, на которую установлен тариф /kind_of_activity_VO/",null,null,null,null,null,null,null,"отходы березовые","м3"]
[null,null,null,null,null,null,"15",15,"Забайкальский край","Транспортировка и очистка сточных вод","XML_ORG_LIST_TAG_NAMES",null,null,null,null,null,null,"отходы осиновые","м3"]
[null,null,null,null,null,null,"16",16,"Ивановская область","Транспортировка сточных вод","NSRF",null,null,null,null,null,null,"печное топливо","тонны"]
[null,null,null,null,null,null,"17",17,"Иркутская область","Очистка сточных вод","MR_NAME",null,null,null,null,null,null,"пилеты","тонны"]
[null,null,null,null,null,null,"18",18,"Кабардино-Балкарская республика",null,"OKTMO_MR_NAME",null,null,null,null,null,null,"смола","тонны"]
[null,null,null,null,null,null,"19",19,"Калининградская область",null,"MO_NAME",null,null,null,null,null,null,"щепа","м3"]
[null,null,null,null,null,null,"20",20,"Калужская область",null,"OKTMO_NAME",null,null,null,null,null,null,"горючий сланец","тонны"]
[null,null,null,null,null,null,null,21,"Камчатский край",null,"ORG_NAME",null,null,null,null,null,null,"керосин","тонны"]
[null,null,null,null,null,null,null,22,"Карачаево-Черкесская республика",null,"INN_NAME",null,null,null,null,null,null,"кислородно-водородная смесь","тыс. м3"]
[null,null,null,null,null,null,null,23,"Кемеровская область",null,"KPP_NAME",null,null,null,null,null,null,"электроэнергия (НН)","тыс.кВт ч"]
[null,null,null,null,null,null,null,24,"Кировская область",null,"VDET_NAME",null,null,null,null,null,null,"электроэнергия (СН1)","тыс.кВт ч"]
[null,null,null,null,null,null,null,25,"Костромская область",null,null,null,null,null,null,null,null,"электроэнергия (СН2)","тыс.кВт ч"]
[null,null,null,null,null,null,null,26,"Краснодарский край",null,"XML_MR_MO_OKTMO_LIST_TAG_NAMES",null,null,null,null,null,null,"электроэнергия (ВН)","тыс.кВт ч"]
[null,null,null,null,null,null,null,27,"Красноярский край",null,"NSRF",null,null,null,null,null,null,"мощность","тыс.кВт"]
[null,null,null,null,null,null,null,28,"Курганская область",null,"MR_NAME",null,null,null,null,null,null,"прочее"]
[null,null,null,null,null,null,null,29,"Курская область",null,"OKTMO_MR_NAME"]
[null,null,null,null,null,null,null,30,"Ленинградская область",null,"MO_NAME"]
[null,null,null,null,null,null,null,31,"Липецкая область",null,"OKTMO_NAME"]
[null,null,null,null,null,null,null,null,"Магаданская область"]
[null,null,null,null,null,null,null,null,"Московская область"]
[null,null,null,null,null,null,null,null,"Мурманская область"]
[null,null,null,null,null,null,null,null,"Ненецкий автономный округ"]
[null,null,null,null,null,null,null,null,"Нижегородская область"]
[null,null,null,null,null,null,null,null,"Новгородская область"]
[null,null,null,null,null,null,null,null,"Новосибирская область"]
[null,null,null,null,null,null,null,null,"Омская область"]
[null,null,null,null,null,null,null,null,"Оренбургская область"]
[null,null,null,null,null,null,null,null,"Орловская область"]
[null,null,null,null,null,null,null,null,"Пензенская область"]
[null,null,null,null,null,null,null,null,"Пермский край"]
[null,null,null,null,null,null,null,null,"Приморский край"]
[null,null,null,null,null,null,null,null,"Псковская область"]
[null,null,null,null,null,null,null,null,"Республика Адыгея"]
[null,null,null,null,null,null,null,null,"Республика Алтай"]
[null,null,null,null,null,null,null,null,"Республика Башкортостан"]
[null,null,null,null,null,null,null,null,"Республика Бурятия"]
[null,null,null,null,null,null,null,null,"Республика Дагестан"]
[null,null,null,null,null,null,null,null,"Республика Ингушетия"]
[null,null,null,null,null,null,null,null,"Республика Калмыкия"]
[null,null,null,null,null,null,null,null,"Республика Карелия"]
[null,null,null,null,null,null,null,null,"Республика Коми"]
[null,null,null,null,null,null,null,null,"Республика Марий Эл"]
[null,null,null,null,null,null,null,null,"Республика Мордовия"]
[null,null,null,null,null,null,null,null,"Республика Саха (Якутия)"]
[null,null,null,null,null,null,null,null,"Республика Северная Осетия-Алания"]
[null,null,null,null,null,null,null,null,"Республика Татарстан"]
[null,null,null,null,null,null,null,null,"Республика Тыва"]
[null,null,null,null,null,null,null,null,"Республика Хакасия"]
[null,null,null,null,null,null,null,null,"Ростовская область"]
[null,null,null,null,null,null,null,null,"Рязанская область"]
[null,null,null,null,null,null,null,null,"Самарская область"]
[null,null,null,null,null,null,null,null,"Саратовская область"]
[null,null,null,null,null,null,null,null,"Сахалинская область"]
[null,null,null,null,null,null,null,null,"Свердловская область"]
[null,null,null,null,null,null,null,null,"Смоленская область"]
[null,null,null,null,null,null,null,null,"Ставропольский край"]
[null,null,null,null,null,null,null,null,"Тамбовская область"]
[null,null,null,null,null,null,null,null,"Тверская область"]
[null,null,null,null,null,null,null,null,"Томская область"]
[null,null,null,null,null,null,null,null,"Тульская область"]
[null,null,null,null,null,null,null,null,"Тюменская область"]
[null,null,null,null,null,null,null,null,"Удмуртская республика"]
[null,null,null,null,null,null,null,null,"Ульяновская область"]
[null,null,null,null,null,null,null,null,"Хабаровский край"]
[null,null,null,null,null,null,null,null,"Ханты-Мансийский автономный округ"]
[null,null,null,null,null,null,null,null,"Челябинская область"]
[null,null,null,null,null,null,null,null,"Чеченская республика"]
[null,null,null,null,null,null,null,null,"Чувашская республика"]
[null,null,null,null,null,null,null,null,"Чукотский автономный округ"]
[null,null,null,null,null,null,null,null,"Ямало-Ненецкий автономный округ"]
[null,null,null,null,null,null,null,null,"Ярославская область"]

{"sheet":"modInfo","index":14,"n_rows":19,"n_cols":2,"rows_kept":19,"cut":false,"hidden":true,"merged":[]}
[null,"Титульный"]
[null,"В зависимости от выбранного значения в поле \"Публикация\" изменяется содержание и количество листов"]
[null,{"$f":" IF(TSphere = \"ТБО\", \"Перечислите все муниципальные районы, в которых организация осуществляет услуги по утилизации (захоронению) твердых бытовых отходов\", \"В случае, если тариф не дифференцируется по системам \"&IF(TSphere = \"ТС\",\"теплоснабжения\",\"коммунальной инфраструктуры\")&\", перечислите все муниципальные районы, в которых организация осуществляет услуги \" &TSphere_full)","v":"В случае, если тариф не дифференцируется по системам коммунальной инфраструктуры, перечислите все муниципальные районы, в которых организация осуществляет услуги горячего водоснабжения"}]
[null,{"$f":" IF(TSphere = \"ТБО\", \"Перечислите все муниципальные образования, в которых организация осуществляет услуги по утилизации (захоронению) твердых бытовых отходов\", \"В случае, если тариф не дифференцируется по системам \"&IF(TSphere = \"ТС\",\"теплоснабжения\",\"коммунальной инфраструктуры\")&\", перечислите все муниципальные образования, в которых организация осуществляет услуги \" &TSphere_full)","v":"В случае, если тариф не дифференцируется по системам коммунальной инфраструктуры, перечислите все муниципальные образования, в которых организация осуществляет услуги горячего водоснабжения"}]
[null,"Признак дифференциации тарифа"]
[null,{"$f":"\"В случае, если тариф не дифференцируется по системам \"&IF(TSphere = \"ТС\",\"теплоснабжения\",\"коммунальной инфраструктуры\")&\", укажите \"\"1\"\".\nВыберите значение из списка, указав очередной условный порядковый номер системы \"&IF(TSphere = \"ТС\",\"теплоснабжения\",\"коммунальной инфраструктуры\")","v":"В случае, если тариф не дифференцируется по системам коммунальной инфраструктуры, укажите \"1\".\nВыберите значение из списка, указав очередной условный порядковый номер системы коммунальной инфраструктуры"}]
[null,"Задайте период регулирования, выбрав начало и окончание очередного периода с помощью календаря /выполните двойной щелчок по соответствующей синей ячейке/.\nИнформация раскрывается регулируемой организацией не позднее 30 дней со дня сдачи годового бухгалтерского баланса в налоговые органы и должна соответствовать годовой бухгалтерской отчетности за отчетный год"]
[null,"Укажите, является ли данное юридическое лицо подразделением(филиалом) другой организации"]
[null,"Выполните двойной щелчок по синей ячейке в соответствующей строке, чтобы ввести дату"]
[null,"Нажмите на кнопку \"Выбор организации\", чтобы выбрать организацию или обновить реестр"]
[null,"Нажмите на кнопку \"Обновить реестр МО\", чтобы обновить реестр МР/МО"]
[null,"Для выбора того или иного источника публикации выполните двойной щелчок по синей ячейке напротив соответствующего источника.\nВНИМАНИЕ! Если Вы снимаете галочку с пункта, то будут скрыты и очищены соответствующие строки на листе \"Ссылки на публикации\"!"]
[null,"В зависимости от указанного вида деятельности будут доступны для заполнения поля 'Производство', 'Передача' и 'Сбыт'"]
[null,{"$f":"\"Выберите значение из списка.\nЕсли выбрано 'Да', на листе '\"&TSphere&\" цены' доступны для заполнения графы для 2-ставочного тарифа по группам потребителей\"","v":"Выберите значение из списка.\nЕсли выбрано 'Да', на листе 'ГВС цены' доступны для заполнения графы для 2-ставочного тарифа по группам потребителей"}]
[null,{"$f":"\"Выберите значение из списка.\nЕсли выбрано 'Да', значения тарифов для групп потребителей на листе '\"&TSphere&\" цены' заполнятся автоматически значениями первой группы\"","v":"Выберите значение из списка.\nЕсли выбрано 'Да', значения тарифов для групп потребителей на листе 'ГВС цены' заполнятся автоматически значениями первой группы"}]
[null,"Цены"]
[null,"Графу следует заполнять в случае, если срок действия тарифа установлен"]
[null,"Ссылки на публикации"]
[null,"Вводите адрес сайта, не нарушая цвет ячейки /если копируете гиперссылку из браузера, то выполните двойной щелчок по ячейке и только после этого можете вставить скопированный элемент/"]

{"sheet":"REESTR_ORG","index":15,"n_rows":310,"n_cols":8,"rows_kept":310,"cut":false,"hidden":true,"merged":[]}
["№","МР","МО","МО ОКТМО","ОРГАНИЗАЦИЯ","ИНН","КПП","ВИД ДЕЯТЕЛЬНОСТИ"]
[1,"Архаринский муниципальный район","Поселок Архара","10605151","ИП Кравченко Е.Л.","281000738501","281001001","Оказание услуг в сфере горячего водоснабжения"]
[2,"Архаринский муниципальный район","Поселок Архара","10605151","ООО\"Восток теплосеть\"","2810003885","281001001","Оказание услуг в сфере горячего водоснабжения"]
[3,"Архаринский муниципальный район","Поселок Архара","10605151","ООО\"Тепловик\"","2810003892","281001001","Оказание услуг в сфере горячего водоснабжения"]
[4,"Архаринский муниципальный район","Поселок Архара","10605151","Филиал ОАО \"Ремонтно-эксплуатационное управление\"  \"Амурский\"","7714783092","280143001","Оказание услуг в сфере горячего водоснабжения"]
[5,"Белогорский муниципальный район","Амурское","10608404","Открытое акционерное общество \"Облкоммунсервис\"","2801154052","280101001","Оказание услуг в сфере горячего водоснабжения"]
[6,"Белогорский муниципальный район","Амурское","10608404","Филиал ОАО \"Ремонтно-эксплуатационное управление\"  \"Амурский\"","7714783092","280143001","Оказание услуг в сфере горячего водоснабжения"]
[7,"Белогорский муниципальный район","Белоцерковское","10608406","Открытое акционерное общество \"Облкоммунсервис\"","2801154052","280101001","Оказание услуг в сфере горячего водоснабжения"]
[8,"Белогорский муниципальный район","Васильевское","10608408","Открытое акционерное общество \"Облкоммунсервис\"","2801154052","280101001","Оказание услуг в сфере горячего водоснабжения"]
[9,"Белогорский муниципальный район","Великокнязевское","10608412","Открытое акционерное общество \"Облкоммунсервис\"","2801154052","280101001","Оказание услуг в сфере горячего водоснабжения"]
[10,"Белогорский муниципальный район","Возжаевское","10608414","Открытое акционерное общество \"Облкоммунсервис\"","2801154052","280101001","Оказание услуг в сфере горячего водоснабжения"]
[11,"Белогорский муниципальный район","Возжаевское","10608414","Филиал ОАО \"Ремонтно-эксплуатационное управление\"  \"Амурский\"","7714783092","280143001","Оказание услуг в сфере горячего водоснабжения"]
[12,"Белогорский муниципальный район","Кустанаевское","10608420","Открытое акционерное общество \"Облкоммунсервис\"","2801154052","280101001","Оказание услуг в сфере горячего водоснабжения"]
[13,"Белогорский муниципальный район","Лохвицкое","10608424","Открытое акционерное общество \"Облкоммунсервис\"","2801154052","280101001","Оказание услуг в сфере горячего водоснабжения"]
[14,"Белогорский муниципальный район","Некрасовское","10608428","Открытое акционерное общество \"Облкоммунсервис\"","2801154052","280101001","Оказание услуг в сфере горячего водоснабжения"]
[15,"Белогорский муниципальный район","Никольское","10608432","Открытое акционерное общество \"Облкоммунсервис\"","2801154052","280101001","Оказание услуг в сфере горячего водоснабжения"]
[16,"Белогорский муниципальный район","Новинское","10608436","Открытое акционерное общество \"Облкоммунсервис\"","2801154052","280101001","Оказание услуг в сфере горячего водоснабжения"]
[17,"Белогорский муниципальный район","Озерянское","10608440","Открытое акционерное общество \"Облкоммунсервис\"","2801154052","280101001","Оказание услуг в сфере горячего водоснабжения"]
[18,"Белогорский муниципальный район","Пригородное","10608444","Открытое акционерное общество \"Облкоммунсервис\"","2801154052","280101001","Оказание услуг в сфере горячего водоснабжения"]
[19,"Белогорский муниципальный район","Светиловское","10608449","Открытое акционерное общество \"Облкоммунсервис\"","2801154052","280101001","Оказание услуг в сфере горячего водоснабжения"]
[20,"Белогорский муниципальный район","Томичевское","10608452","Открытое акционерное общество \"Облкоммунсервис\"","2801154052","280101001","Оказание услуг в сфере горячего водоснабжения"]
[21,"Белогорский муниципальный район","Томичевское","10608452","Филиал ОАО \"Ремонтно-эксплуатационное управление\"  \"Амурский\"","7714783092","280143001","Оказание услуг в сфере горячего водоснабжения"]
[22,"Белогорский муниципальный район","Успеновское","10608456","Открытое акционерное общество \"Облкоммунсервис\"","2801154052","280101001","Оказание услуг в сфере горячего водоснабжения"]
[23,"Благовещенский муниципальный район","Волковское","10611408","МУП \"Агропромжилкомэнерго\"","2812002044","281201001","Оказание услуг в сфере горячего водоснабжения"]
[24,"Благовещенский муниципальный район","Волковское","10611408","ООО \"Волковское\"","2801134070","281201001","Оказание услуг в сфере горячего водоснабжения"]
[25,"Благовещенский муниципальный район","Грибское","10611412","МУП \"Агропромжилкомэнерго\"","2812002044","281201001","Оказание услуг в сфере горячего водоснабжения"]
[26,"Благовещенский муниципальный район","Гродековское","10611413","МУП \"Агропромжилкомэнерго\"","2812002044","281201001","Оказание услуг в сфере горячего водоснабжения"]
[27,"Благовещенский муниципальный район","Михайловское","10611420","ООО \"Михайловское\"","2801109846","280101001","Оказание услуг в сфере горячего водоснабжения"]
[28,"Благовещенский муниципальный район","Новопетровское","10611428","ООО \"Михайловское\"","2801109846","280101001","Оказание услуг в сфере горячего водоснабжения"]
[29,"Благовещенский муниципальный район","Новотроицкое","10611432","ООО \"Сергеевское\"","2801109839","280101001","Оказание услуг в сфере горячего водоснабжения"]
[30,"Благовещенский муниципальный район","Сергеевское","10611436","ООО \"Сергеевское\"","2801109839","280101001","Оказание услуг в сфере горячего водоснабжения"]
[31,"Благовещенский муниципальный район","Усть-Ивановское","10611438","МУП \"Агропромжилкомэнерго\"","2812002044","281201001","Оказание услуг в сфере горячего водоснабжения"]
[32,"Благовещенский муниципальный район","Усть-Ивановское","10611438","ООО \"Сергеевское\"","2801109839","280101001","Оказание услуг в сфере горячего водоснабжения"]
[33,"Благовещенский муниципальный район","Усть-Ивановское","10611438","Открытое акционерное общество \"Облкоммунсервис\"","2801154052","280101001","Оказание услуг в сфере горячего водоснабжения"]
[34,"Благовещенский муниципальный район","Чигиринское","10611440","Открытое акционерное общество \"Облкоммунсервис\"","2801154052","280101001","Оказание услуг в сфере горячего водоснабжения"]
[35,"Бурейский муниципальный район","Поселок Бурея","10615157","БУМП \"Электротеплосеть\"","2813005425","281301001","Оказание услуг в сфере горячего водоснабжения"]
[36,"Бурейский муниципальный район","Поселок Бурея","10615157","Забайкальская дирекция по тепловодоснабжению - структурное подразделение Центральной дирекции по тепловодоснабжению филиала ОАО \"РЖД\"","7708503727","280701001","Оказание услуг в сфере горячего водоснабжения"]
[37,"Бурейский муниципальный район","Поселок Бурея","10615157","Филиал ОАО \"Ремонтно-эксплуатационное управление\"  \"Амурский\"","7714783092","280143001","Оказание услуг в сфере горячего водоснабжения"]
[38,"Бурейский муниципальный район","Поселок Новобурейский","10615151","БУМП \"Электротеплосеть\"","2813005425","281301001","Оказание услуг в сфере горячего водоснабжения"]
[39,"Бурейский муниципальный район","Поселок Новобурейский","10615151","Забайкальская дирекция по тепловодоснабжению - структурное подразделение Центральной дирекции по тепловодоснабжению филиала ОАО \"РЖД\"","7708503727","280701001","Оказание услуг в сфере горячего водоснабжения"]
[40,"Бурейский муниципальный район","Поселок Новобурейский","10615151","ОАО \"Бурея-кран\"","2813000804","281301001","Оказание услуг в сфере горячего водоснабжения"]
[41,"Бурейский муниципальный район","Поселок Талакан","10615172","ООО \"Энергетик\"","2813006348","281301001","Оказание услуг в сфере горячего водоснабжения"]
[42,"Бурейский муниципальный район","Родионовское","10615440","Филиал ОАО \"Ремонтно-эксплуатационное управление\"  \"Амурский\"","7714783092","280143001","Оказание услуг в сфере горячего водоснабжения"]
[43,"Город Белогорск","Город Белогорск","10710000","Вагонное ремонтное депо Белогорск- обособленное структурное подразделение Иркутского филиала ОАО \"ВРК-3\"","7708737500","280445001","Оказание услуг в сфере горячего водоснабжения"]
[44,"Город Белогорск","Город Белогорск","10710000","Забайкальская дирекция по тепловодоснабжению - структурное подразделение Центральной дирекции по тепловодоснабжению филиала ОАО \"РЖД\"","7708503727","280701001","Оказание услуг в сфере горячего водоснабжения"]
[45,"Город Белогорск","Город Белогорск","10710000","МУП \"Электротеплосеть г. Белогорска\"","2804014416","280401001","Оказание услуг в сфере горячего водоснабжения"]
[46,"Город Белогорск","Город Белогорск","10710000","ООО \"Агротехсервис\"","2804010274","280401001","Оказание услуг в сфере горячего водоснабжения"]
[47,"Город Белогорск","Город Белогорск","10710000","ООО \"Дальжилстрой\"","2801112768","280101001","Оказание услуг в сфере горячего водоснабжения"]
[48,"Город Белогорск","Город Белогорск","10710000","ООО \"Котельная\"","2804011359","280401001","Оказание услуг в сфере горячего водоснабжения"]
[49,"Город Белогорск","Город Белогорск","10710000","ООО Тепло-комбинат \"Восточный\"","2804014712","280401001","Оказание услуг в сфере горячего водоснабжения"]
[50,"Город Белогорск","Город Белогорск","10710000","Открытое акционерное общество \"Облкоммунсервис\"","2801154052","280101001","Оказание услуг в сфере горячего водоснабжения"]
[51,"Город Белогорск","Город Белогорск","10710000","Филиал ОАО \"Ремонтно-эксплуатационное управление\"  \"Амурский\"","7714783092","280143001","Оказание услуг в сфере горячего водоснабжения"]
[52,"Город Благовещенск","Город Благовещенск","10701000","ЗАО \"Амурплодсемпром\"","2812000840","280101001","Оказание услуг в сфере горячего водоснабжения"]
[53,"Город Благовещенск","Город Благовещенск","10701000","Забайкальская дирекция по тепловодоснабжению - структурное подразделение Центральной дирекции по тепловодоснабжению филиала ОАО \"РЖД\"","7708503727","280701001","Оказание услуг в сфере горячего водоснабжения"]
[54,"Город Благовещенск","Город Благовещенск","10701000","ОАО \"Амурские коммунальные системы\"","2801091892","280101001","Оказание услуг в сфере горячего водоснабжения"]
[55,"Город Благовещенск","Город Благовещенск","10701000","ОАО \"ДГК\" филиал \"Амурская генерация\"","1434031363","280102001","Поставка горячей воды"]
[56,"Город Благовещенск","Город Благовещенск","10701000","ООО \"Благовещенский завод строительных материалов\"","2801151781","280101001","Оказание услуг в сфере горячего водоснабжения"]
[57,"Город Благовещенск","Город Благовещенск","10701000","Общество с ограниченной ответственностью «ЖКХ-Ресурс-Райчихинский»","2806008591","280601001","Оказание услуг в сфере горячего водоснабжения"]
[58,"Город Благовещенск","Город Благовещенск","10701000","Открытое акционерное общество \"Облкоммунсервис\"","2801154052","280101001","Оказание услуг в сфере горячего водоснабжения"]
[59,"Город Благовещенск","Город Благовещенск","10701000","Филиал ОАО \"Ремонтно-эксплуатационное управление\"  \"Амурский\"","7714783092","280143001","Оказание услуг в сфере горячего водоснабжения"]
[60,"Город Зея","Город Зея","10712000","ООО \"Тепло 1-5,12\"","2815005533","281501001","Оказание услуг в сфере горячего водоснабжения"]
[61,"Город Зея","Город Зея","10712000","ООО \"Тепло 6-8, 21\"","2815005565","281501001","Оказание услуг в сфере горячего водоснабжения"]
[62,"Город Зея","Город Зея","10712000","ООО \"Тепло 9-11,22\"","2815005597","281501001","Оказание услуг в сфере горячего водоснабжения"]
[63,"Город Зея","Город Зея","10712000","ООО\"Зейские тепловые сети\"","2815005780","280501001","Оказание услуг в сфере горячего водоснабжения"]
[64,"Город Райчихинск","Город Райчихинск","10720000","Забайкальская дирекция по тепловодоснабжению - структурное подразделение Центральной дирекции по тепловодоснабжению филиала ОАО \"РЖД\"","7708503727","280701001","Оказание услуг в сфере горячего водоснабжения"]
[65,"Город Райчихинск","Город Райчихинск","10720000","ОАО \"Буреягэсстрой\" СМЭУ","2813005249","281301001","Оказание услуг в сфере горячего водоснабжения"]
[66,"Город Райчихинск","Город Райчихинск","10720000","Общество с ограниченной ответственностью «ЖКХ-Ресурс-Райчихинский»","2806008591","280601001","Оказание услуг в сфере горячего водоснабжения"]
[67,"Город Райчихинск","Город Райчихинск","10720000","Открытое акционерное общество \"Облкоммунсервис\"","2801154052","280101001","Оказание услуг в сфере горячего водоснабжения"]
[68,"Город Райчихинск","Город Райчихинск","10720000","Филиал ОАО \"Ремонтно-эксплуатационное управление\"  \"Амурский\"","7714783092","280143001","Оказание услуг в сфере горячего водоснабжения"]
[69,"Город Свободный","Город Свободный","10730000","Забайкальская дирекция по тепловодоснабжению - структурное подразделение Центральной дирекции по тепловодоснабжению филиала ОАО \"РЖД\"","7708503727","280701001","Оказание услуг в сфере горячего водоснабжения"]
[70,"Город Свободный","Город Свободный","10730000","ООО \"Теплосеть\"","2807034001","280701001","Оказание услуг в сфере горячего водоснабжения"]
[71,"Город Свободный","Город Свободный","10730000","ООО \"Теплоснаб\"","2807015489","280701001","Оказание услуг в сфере горячего водоснабжения"]
[72,"Город Свободный","Город Свободный","10730000","Открытое акционерное общество \"Облкоммунсервис\"","2801154052","280101001","Оказание услуг в сфере горячего водоснабжения"]
[73,"Город Свободный","Город Свободный","10730000","Филиал ОАО \"Ремонтно-эксплуатационное управление\"  \"Амурский\"","7714783092","280143001","Оказание услуг в сфере горячего водоснабжения"]
[74,"Город Тында","Город Тында","10732000","Дистанция тепловых сетей Дальневосточной Дирекции по тепловодоснабжению структурного подразделения Центральной Дирекции по тепловодоснабжению - филиала ОАО \"Российские железные дороги\"","7708503727","280801001","Оказание услуг в сфере горячего водоснабжения"]
[75,"Город Тында","Город Тында","10732000","МУП \"Горэлектротеплосеть\" г.Тында","2808002098","280801001","Оказание услуг в сфере горячего водоснабжения"]
[76,"Город Тында","Город Тында","10732000","ОАО \"Коммунальные системы БАМа\"","2808023556","280801001","Оказание услуг в сфере горячего водоснабжения"]
[77,"Город Шимановск","Город Шимановск","10740000","ЗАО \"Холдинг\"","2809003633","280901001","Оказание услуг в сфере горячего водоснабжения"]
[78,"Город Шимановск","Город Шимановск","10740000","Забайкальская дирекция по тепловодоснабжению - структурное подразделение Центральной дирекции по тепловодоснабжению филиала ОАО \"РЖД\"","7708503727","280701001","Оказание услуг в сфере горячего водоснабжения"]
[79,"Город Шимановск","Город Шимановск","10740000","ОАО ДЭП №190","2829001730","280901001","Оказание услуг в сфере горячего водоснабжения"]
[80,"Завитинский муниципальный район","Албазинское","10621404","Филиал ОАО \"Ремонтно-эксплуатационное управление\"  \"Амурский\"","7714783092","280143001","Оказание услуг в сфере горячего водоснабжения"]
[81,"Завитинский муниципальный район","Антоновское","10621408","Филиал ОАО \"Ремонтно-эксплуатационное управление\"  \"Амурский\"","7714783092","280143001","Оказание услуг в сфере горячего водоснабжения"]
[82,"Завитинский муниципальный район","Белояровское","10621412","Филиал ОАО \"Ремонтно-эксплуатационное управление\"  \"Амурский\"","7714783092","280143001","Оказание услуг в сфере горячего водоснабжения"]
[83,"Завитинский муниципальный район","Болдыревское","10621416","Филиал ОАО \"Ремонтно-эксплуатационное управление\"  \"Амурский\"","7714783092","280143001","Оказание услуг в сфере горячего водоснабжения"]
[84,"Завитинский муниципальный район","Верхнеильиновское","10621424","Филиал ОАО \"Ремонтно-эксплуатационное управление\"  \"Амурский\"","7714783092","280143001","Оказание услуг в сфере горячего водоснабжения"]
[85,"Завитинский муниципальный район","Город Завитинск","10621101","Забайкальская дирекция по тепловодоснабжению - структурное подразделение Центральной дирекции по тепловодоснабжению филиала ОАО \"РЖД\"","7708503727","280701001","Оказание услуг в сфере горячего водоснабжения"]
[86,"Завитинский муниципальный район","Город Завитинск","10621101","ООО \"Торгово-производственная компания \"Дальстройсервис\"","2801155810","281401001","Оказание услуг в сфере горячего водоснабжения"]
[87,"Завитинский муниципальный район","Город Завитинск","10621101","Филиал ОАО \"Ремонтно-эксплуатационное управление\"  \"Амурский\"","7714783092","280143001","Оказание услуг в сфере горячего водоснабжения"]
[88,"Завитинский муниципальный район","Завитинский муниципальный район","10621000","Филиал ОАО \"Ремонтно-эксплуатационное управление\"  \"Амурский\"","7714783092","280143001","Оказание услуг в сфере горячего водоснабжения"]
[89,"Завитинский муниципальный район","Иннокентьевское","10621428","Филиал ОАО \"Ремонтно-эксплуатационное управление\"  \"Амурский\"","7714783092","280143001","Оказание услуг в сфере горячего водоснабжения"]
[90,"Завитинский муниципальный район","Куприяновское","10621440","Филиал ОАО \"Ремонтно-эксплуатационное управление\"  \"Амурский\"","7714783092","280143001","Оказание услуг в сфере горячего водоснабжения"]
[91,"Завитинский муниципальный район","Преображеновское","10621420","Филиал ОАО \"Ремонтно-эксплуатационное управление\"  \"Амурский\"","7714783092","280143001","Оказание услуг в сфере горячего водоснабжения"]
[92,"Завитинский муниципальный район","Успеновское","10621444","Филиал ОАО \"Ремонтно-эксплуатационное управление\"  \"Амурский\"","7714783092","280143001","Оказание услуг в сфере горячего водоснабжения"]
[93,"Зейский муниципальный район","Береговое","10625420","ООО\"Береговские теплосистемы\"","2815014048","280501001","Оказание услуг в сфере горячего водоснабжения"]
[94,"Зейский муниципальный район","Верхнезейское","10625414","ОАО \"Коммунальные системы БАМа\"","2808023556","280801001","Оказание услуг в сфере горячего водоснабжения"]
[95,"Зейский муниципальный район","Дугдинское","10625423","ОАО \"Коммунальные системы БАМа\"","2808023556","280801001","Оказание услуг в сфере горячего водоснабжения"]
[96,"Зейский муниципальный район","Огоронское","10625441","ОАО \"Коммунальные системы БАМа\"","2808023556","280801001","Оказание услуг в сфере горячего водоснабжения"]
[97,"Зейский муниципальный район","Тунгалинское","10625457","ОАО \"Коммунальные системы БАМа\"","2808023556","280801001","Оказание услуг в сфере горячего водоснабжения"]
[98,"Ивановский муниципальный район","Березовское","10628407","Филиал ОАО \"Ремонтно-эксплуатационное управление\"  \"Амурский\"","7714783092","280143001","Оказание услуг в сфере горячего водоснабжения"]
[99,"Ивановский муниципальный район","Ивановское","10628416","Колхоз \"Луч\"","2816000190","281601001","Оказание услуг в сфере горячего водоснабжения"]
[100,"Ивановский муниципальный район","Ивановское","10628416","ООО \"Теплодом\"","2816007942","281601001","Оказание услуг в сфере горячего водоснабжения"]
[101,"Ивановский муниципальный район","Ивановское","10628416","ООО \"Теплосеть\"","2816008110","281601001","Оказание услуг в сфере горячего водоснабжения"]
[102,"Ивановский муниципальный район","Ивановское","10628416","Филиал ОАО \"Ремонтно-эксплуатационное управление\"  \"Амурский\"","7714783092","280143001","Оказание услуг в сфере горячего водоснабжения"]
[103,"Ивановский муниципальный район","Николаевское","10628420","Открытое акционерное общество \"Облкоммунсервис\"","2801154052","280101001","Оказание услуг в сфере горячего водоснабжения"]
[104,"Ивановский муниципальный район","Новоалексеевское","10628424","Открытое акционерное общество \"Облкоммунсервис\"","2801154052","280101001","Оказание услуг в сфере горячего водоснабжения"]
[105,"Ивановский муниципальный район","Новоивановское","10628425","Филиал ОАО \"Ремонтно-эксплуатационное управление\"  \"Амурский\"","7714783092","280143001","Оказание услуг в сфере горячего водоснабжения"]
[106,"Ивановский муниципальный район","Среднебельское","10628440","ООО \"Теплосервис\"","2816008551","281601001","Оказание услуг в сфере горячего водоснабжения"]
[107,"Ивановский муниципальный район","Среднебельское","10628440","Филиал ОАО \"Ремонтно-эксплуатационное управление\"  \"Амурский\"","7714783092","280143001","Оказание услуг в сфере горячего водоснабжения"]
[108,"Ивановский муниципальный район","Черемховское","10628448","Филиал ОАО \"Ремонтно-эксплуатационное управление\"  \"Амурский\"","7714783092","280143001","Оказание услуг в сфере горячего водоснабжения"]
[109,"Магдагачинский муниципальный район","Гонжинское","10631404","Открытое акционерное общество \"Облкоммунсервис\"","2801154052","280101001","Оказание услуг в сфере горячего водоснабжения"]
[110,"Магдагачинский муниципальный район","Дактуйское","10631408","Забайкальская дирекция по тепловодоснабжению - структурное подразделение Центральной дирекции по тепловодоснабжению филиала ОАО \"РЖД\"","7708503727","280701001","Оказание услуг в сфере горячего водоснабжения"]
[111,"Магдагачинский муниципальный район","Поселок Магдагачи","10631151","Забайкальская дирекция по тепловодоснабжению - структурное подразделение Центральной дирекции по тепловодоснабжению филиала ОАО \"РЖД\"","7708503727","280701001","Оказание услуг в сфере горячего водоснабжения"]
[112,"Магдагачинский муниципальный район","Поселок Магдагачи","10631151","ОАО \"Буреягэсстрой\" СМЭУ","2813005249","281301001","Оказание услуг в сфере горячего водоснабжения"]
[113,"Магдагачинский муниципальный район","Поселок Магдагачи","10631151","ООО \"ЖКХ-Ресурс\"","2801162751","280101001","Оказание услуг в сфере горячего водоснабжения"]
[114,"Магдагачинский муниципальный район","Поселок Магдагачи","10631151","ООО Тепло-водоканал\"","2818005387","281801001","Оказание услуг в сфере горячего водоснабжения"]
[115,"Магдагачинский муниципальный район","Поселок Ушумун","10631170","Забайкальская дирекция по тепловодоснабжению - структурное подразделение Центральной дирекции по тепловодоснабжению филиала ОАО \"РЖД\"","7708503727","280701001","Оказание услуг в сфере горячего водоснабжения"]
[116,"Магдагачинский муниципальный район","Тыгдинское","10631422","Забайкальская дирекция по тепловодоснабжению - структурное подразделение Центральной дирекции по тепловодоснабжению филиала ОАО \"РЖД\"","7708503727","280701001","Оказание услуг в сфере горячего водоснабжения"]
[117,"Магдагачинский муниципальный район","Черняевское","10631428","ООО \"ЖКХ-Ресурс\"","2801162751","280101001","Оказание услуг в сфере горячего водоснабжения"]
[118,"Мазановский муниципальный район","Белояровское","10632404","Открытое акционерное общество \"Облкоммунсервис\"","2801154052","280101001","Оказание услуг в сфере горячего водоснабжения"]
[119,"Мазановский муниципальный район","Богословское","10632408","Открытое акционерное общество \"Облкоммунсервис\"","2801154052","280101001","Оказание услуг в сфере горячего водоснабжения"]
[120,"Мазановский муниципальный район","Дмитриевское","10632416","Открытое акционерное общество \"Облкоммунсервис\"","2801154052","280101001","Оказание услуг в сфере горячего водоснабжения"]
[121,"Мазановский муниципальный район","Краснояровское","10632420","Открытое акционерное общество \"Облкоммунсервис\"","2801154052","280101001","Оказание услуг в сфере горячего водоснабжения"]
[122,"Мазановский муниципальный район","Мазановское","10632424","Открытое акционерное общество \"Облкоммунсервис\"","2801154052","280101001","Оказание услуг в сфере горячего водоснабжения"]
[123,"Мазановский муниципальный район","Мазановское","10632424","Филиал ОАО \"Ремонтно-эксплуатационное управление\"  \"Амурский\"","7714783092","280143001","Оказание услуг в сфере горячего водоснабжения"]
[124,"Мазановский муниципальный район","Майское","10632425","Открытое акционерное общество \"Облкоммунсервис\"","2801154052","280101001","Оказание услуг в сфере горячего водоснабжения"]
[125,"Мазановский муниципальный район","Маргаритовское","10632428","Открытое акционерное общество \"Облкоммунсервис\"","2801154052","280101001","Оказание услуг в сфере горячего водоснабжения"]
[126,"Мазановский муниципальный район","Молчановское","10632432","Открытое акционерное общество \"Облкоммунсервис\"","2801154052","280101001","Оказание услуг в сфере горячего водоснабжения"]
[127,"Мазановский муниципальный район","Новокиевское","10632436","Мазановское УМП \"Транспортное\"","2819014507","281901001","Оказание услуг в сфере горячего водоснабжения"]
[128,"Мазановский муниципальный район","Новокиевское","10632436","ОАО \"Мазановскагропромстрой\"","2819002710","281901001","Оказание услуг в сфере горячего водоснабжения"]
[129,"Мазановский муниципальный район","Новокиевское","10632436","Открытое акционерное общество \"Облкоммунсервис\"","2801154052","280101001","Оказание услуг в сфере горячего водоснабжения"]
[130,"Мазановский муниципальный район","Новороссийское","10632440","Открытое акционерное общество \"Облкоммунсервис\"","2801154052","280101001","Оказание услуг в сфере горячего водоснабжения"]
[131,"Мазановский муниципальный район","Практичанское","10632448","Открытое акционерное общество \"Облкоммунсервис\"","2801154052","280101001","Оказание услуг в сфере горячего водоснабжения"]
[132,"Мазановский муниципальный район","Путятинское","10632452","Открытое акционерное общество \"Облкоммунсервис\"","2801154052","280101001","Оказание услуг в сфере горячего водоснабжения"]
[133,"Мазановский муниципальный район","Романкауцкое","10632456","Открытое акционерное общество \"Облкоммунсервис\"","2801154052","280101001","Оказание услуг в сфере горячего водоснабжения"]
[134,"Мазановский муниципальный район","Сапроновское","10632460","Открытое акционерное общество \"Облкоммунсервис\"","2801154052","280101001","Оказание услуг в сфере горячего водоснабжения"]
[135,"Мазановский муниципальный район","Угловское","10632464","Открытое акционерное общество \"Облкоммунсервис\"","2801154052","280101001","Оказание услуг в сфере горячего водоснабжения"]
[136,"Михайловский муниципальный район","Воскресеновское","10635408","ООО \"Жилкомфорт\"","2820009942","282001001","Оказание услуг в сфере горячего водоснабжения"]
[137,"Михайловский муниципальный район","Воскресеновское","10635408","Открытое акционерное общество \"Облкоммунсервис\"","2801154052","280101001","Оказание услуг в сфере горячего водоснабжения"]
[138,"Михайловский муниципальный район","Димское","10635412","ООО \"Жилкомфорт\"","2820009942","282001001","Оказание услуг в сфере горячего водоснабжения"]
[139,"Михайловский муниципальный район","Димское","10635412","Открытое акционерное общество \"Облкоммунсервис\"","2801154052","280101001","Оказание услуг в сфере горячего водоснабжения"]
[140,"Михайловский муниципальный район","Дубовское","10635416","ООО \"Жилкомфорт\"","2820009942","282001001","Оказание услуг в сфере горячего водоснабжения"]
[141,"Михайловский муниципальный район","Дубовское","10635416","Открытое акционерное общество \"Облкоммунсервис\"","2801154052","280101001","Оказание услуг в сфере горячего водоснабжения"]
[142,"Михайловский муниципальный район","Зеленоборское","10635420","ООО \"ЭнергоСтройСервис\"","2820004711","282001001","Оказание услуг в сфере горячего водоснабжения"]
[143,"Михайловский муниципальный район","Зеленоборское","10635420","Открытое акционерное общество \"Облкоммунсервис\"","2801154052","280101001","Оказание услуг в сфере горячего водоснабжения"]
[144,"Михайловский муниципальный район","Ильиновское","10635424","ООО \"Жилкомфорт\"","2820009942","282001001","Оказание услуг в сфере горячего водоснабжения"]
[145,"Михайловский муниципальный район","Ильиновское","10635424","Открытое акционерное общество \"Облкоммунсервис\"","2801154052","280101001","Оказание услуг в сфере горячего водоснабжения"]
[146,"Михайловский муниципальный район","Калининское","10635428","ООО \"Жилкомфорт\"","2820009942","282001001","Оказание услуг в сфере горячего водоснабжения"]
[147,"Михайловский муниципальный район","Калининское","10635428","Открытое акционерное общество \"Облкоммунсервис\"","2801154052","280101001","Оказание услуг в сфере горячего водоснабжения"]
[148,"Михайловский муниципальный район","Коршуновское","10635432","Открытое акционерное общество \"Облкоммунсервис\"","2801154052","280101001","Оказание услуг в сфере горячего водоснабжения"]
[149,"Михайловский муниципальный район","Михайловское","10635436","ООО \"Жилкомфорт\"","2820009942","282001001","Оказание услуг в сфере горячего водоснабжения"]
[150,"Михайловский муниципальный район","Михайловское","10635436","Открытое акционерное общество \"Облкоммунсервис\"","2801154052","280101001","Оказание услуг в сфере горячего водоснабжения"]
[151,"Михайловский муниципальный район","Новочесноковское","10635440","Открытое акционерное общество \"Облкоммунсервис\"","2801154052","280101001","Оказание услуг в сфере горячего водоснабжения"]
[152,"Михайловский муниципальный район","Поярковское","10635442","ОАО ПМК-103","2820000770","282001001","Оказание услуг в сфере горячего водоснабжения"]
[153,"Михайловский муниципальный район","Поярковское","10635442","ООО \"Жилкомфорт\"","2820009942","282001001","Оказание услуг в сфере горячего водоснабжения"]
[154,"Михайловский муниципальный район","Поярковское","10635442","Открытое акционерное общество \"Облкоммунсервис\"","2801154052","280101001","Оказание услуг в сфере горячего водоснабжения"]
[155,"Михайловский муниципальный район","Чесноковское","10635444","ООО \"Жилкомфорт\"","2820009942","282001001","Оказание услуг в сфере горячего водоснабжения"]
[156,"Михайловский муниципальный район","Чесноковское","10635444","Открытое акционерное общество \"Облкоммунсервис\"","2801154052","280101001","Оказание услуг в сфере горячего водоснабжения"]
[157,"Октябрьский муниципальный район","Борисоглебское","10638402","Филиал ОАО \"Ремонтно-эксплуатационное управление\"  \"Амурский\"","7714783092","280143001","Оказание услуг в сфере горячего водоснабжения"]
[158,"Октябрьский муниципальный район","Варваровское","10638405","ООО \"Варваровский Коммунальщик -1\"","2821007433","282101001","Оказание услуг в сфере горячего водоснабжения"]
[159,"Октябрьский муниципальный район","Варваровское","10638405","ООО \"Варваровский Коммунальщик-2\"","2821007497","282101001","Оказание услуг в сфере горячего водоснабжения"]
[160,"Октябрьский муниципальный район","Варваровское","10638405","ООО \"Варваровское домоуправление\"","2821003990","282101001","Поставка горячей воды"]
[161,"Октябрьский муниципальный район","Варваровское","10638405","Филиал ОАО \"Ремонтно-эксплуатационное управление\"  \"Амурский\"","7714783092","280143001","Оказание услуг в сфере горячего водоснабжения"]
[162,"Октябрьский муниципальный район","Восточное","10638408","Филиал ОАО \"Ремонтно-эксплуатационное управление\"  \"Амурский\"","7714783092","280143001","Оказание услуг в сфере горячего водоснабжения"]
[163,"Октябрьский муниципальный район","Екатеринославское","10638403","Забайкальская дирекция по тепловодоснабжению - структурное подразделение Центральной дирекции по тепловодоснабжению филиала ОАО \"РЖД\"","7708503727","280701001","Оказание услуг в сфере горячего водоснабжения"]
[164,"Октябрьский муниципальный район","Екатеринославское","10638403","Филиал ОАО \"Ремонтно-эксплуатационное управление\"  \"Амурский\"","7714783092","280143001","Оказание услуг в сфере горячего водоснабжения"]
[165,"Октябрьский муниципальный район","Королинское","10638424","Филиал ОАО \"Ремонтно-эксплуатационное управление\"  \"Амурский\"","7714783092","280143001","Оказание услуг в сфере горячего водоснабжения"]
[166,"Октябрьский муниципальный район","Максимовское","10638412","Филиал ОАО \"Ремонтно-эксплуатационное управление\"  \"Амурский\"","7714783092","280143001","Оказание услуг в сфере горячего водоснабжения"]
[167,"Октябрьский муниципальный район","Мухинское","10638416","ООО \"Варваровский Коммунальщик -1\"","2821007433","282101001","Оказание услуг в сфере горячего водоснабжения"]
[168,"Октябрьский муниципальный район","Мухинское","10638416","ООО \"Варваровское домоуправление\"","2821003990","282101001","Поставка горячей воды"]
[169,"Октябрьский муниципальный район","Мухинское","10638416","Филиал ОАО \"Ремонтно-эксплуатационное управление\"  \"Амурский\"","7714783092","280143001","Оказание услуг в сфере горячего водоснабжения"]
[170,"Октябрьский муниципальный район","Николо-Александровское","10638420","Филиал ОАО \"Ремонтно-эксплуатационное управление\"  \"Амурский\"","7714783092","280143001","Оказание услуг в сфере горячего водоснабжения"]
[171,"Октябрьский муниципальный район","Новомихайловское","10638428","Филиал ОАО \"Ремонтно-эксплуатационное управление\"  \"Амурский\"","7714783092","280143001","Оказание услуг в сфере горячего водоснабжения"]
[172,"Октябрьский муниципальный район","Октябрьский муниципальный район","10638000","Филиал ОАО \"Ремонтно-эксплуатационное управление\"  \"Амурский\"","7714783092","280143001","Оказание услуг в сфере горячего водоснабжения"]
[173,"Октябрьский муниципальный район","Панинское","10638429","Филиал ОАО \"Ремонтно-эксплуатационное управление\"  \"Амурский\"","7714783092","280143001","Оказание услуг в сфере горячего водоснабжения"]
[174,"Октябрьский муниципальный район","Переясловское","10638433","Филиал ОАО \"Ремонтно-эксплуатационное управление\"  \"Амурский\"","7714783092","280143001","Оказание услуг в сфере горячего водоснабжения"]
[175,"Октябрьский муниципальный район","Песчаноозерское","10638432","ООО \"Варваровский Коммунальщик -1\"","2821007433","282101001","Оказание услуг в сфере горячего водоснабжения"]
[176,"Октябрьский муниципальный район","Песчаноозерское","10638432","ООО \"Варваровское домоуправление\"","2821003990","282101001","Поставка горячей воды"]
[177,"Октябрьский муниципальный район","Песчаноозерское","10638432","Филиал ОАО \"Ремонтно-эксплуатационное управление\"  \"Амурский\"","7714783092","280143001","Оказание услуг в сфере горячего водоснабжения"]
[178,"Октябрьский муниципальный район","Романовское","10638436","Филиал ОАО \"Ремонтно-эксплуатационное управление\"  \"Амурский\"","7714783092","280143001","Оказание услуг в сфере горячего водоснабжения"]
[179,"Октябрьский муниципальный район","Смеловское","10638440","Филиал ОАО \"Ремонтно-эксплуатационное управление\"  \"Амурский\"","7714783092","280143001","Оказание услуг в сфере горячего водоснабжения"]
[180,"Октябрьский муниципальный район","Трудовое","10638404","Филиал ОАО \"Ремонтно-эксплуатационное управление\"  \"Амурский\"","7714783092","280143001","Оказание услуг в сфере горячего водоснабжения"]
[181,"Поселок Углегорск (ЗАТО)","Поселок Углегорск (ЗАТО)","10770000","МУЖЭП ЗАТО Углегорск","2823005248","282301001","Оказание услуг в сфере горячего водоснабжения"]
[182,"Прогресс","Прогресс","10775000","ОАО \"ДГК\" филиал \"Амурская генерация\"","1434031363","280102001","Поставка горячей воды"]
[183,"Прогресс","Прогресс","10775000","ООО \"Амурская Угольная Компания\"","2806007005","280601001","Оказание услуг в сфере горячего водоснабжения"]
[184,"Прогресс","Прогресс","10775000","ООО \"Комуслуги\"","2806006594","280601001","Оказание услуг в сфере горячего водоснабжения"]
[185,"Ромненский муниципальный район","Амаранское","10640404","МУП \"Ромненские коммунальные сети\"","2822003720","282201001","Оказание услуг в сфере горячего водоснабжения"]
[186,"Ромненский муниципальный район","Верхнебельское","10640408","Открытое акционерное общество \"Облкоммунсервис\"","2801154052","280101001","Оказание услуг в сфере горячего водоснабжения"]
[187,"Ромненский муниципальный район","Дальневосточное","10640412","Открытое акционерное общество \"Облкоммунсервис\"","2801154052","280101001","Оказание услуг в сфере горячего водоснабжения"]
[188,"Ромненский муниципальный район","Знаменское","10640416","Открытое акционерное общество \"Облкоммунсервис\"","2801154052","280101001","Оказание услуг в сфере горячего водоснабжения"]
[189,"Ромненский муниципальный район","Калиновское","10640420","МУП \"Ромненские коммунальные сети\"","2822003720","282201001","Оказание услуг в сфере горячего водоснабжения"]
[190,"Ромненский муниципальный район","Каховское","10640424","МУП \"Ромненские коммунальные сети\"","2822003720","282201001","Оказание услуг в сфере горячего водоснабжения"]
[191,"Ромненский муниципальный район","Поздеевское","10640428","Открытое акционерное общество \"Облкоммунсервис\"","2801154052","280101001","Оказание услуг в сфере горячего водоснабжения"]
[192,"Ромненский муниципальный район","Поздеевское","10640428","Филиал ОАО \"Ремонтно-эксплуатационное управление\"  \"Амурский\"","7714783092","280143001","Оказание услуг в сфере горячего водоснабжения"]
[193,"Ромненский муниципальный район","Ромненское","10640440","МУП \"Ромненские коммунальные сети\"","2822003720","282201001","Оказание услуг в сфере горячего водоснабжения"]
[194,"Ромненский муниципальный район","Святоруссовское","10640444","МУП \"Ромненские коммунальные сети\"","2822003720","282201001","Оказание услуг в сфере горячего водоснабжения"]
[195,"Ромненский муниципальный район","Чергалинское","10640449","МУП \"Ромненские коммунальные сети\"","2822003720","282201001","Оказание услуг в сфере горячего водоснабжения"]
[196,"Свободненский муниципальный район","Дмитриевское","10642412","ООО \"Районные коммунальные системы\"","2823007904","282301001","Оказание услуг в сфере горячего водоснабжения"]
[197,"Свободненский муниципальный район","Дмитриевское","10642412","Открытое акционерное общество \"Облкоммунсервис\"","2801154052","280101001","Оказание услуг в сфере горячего водоснабжения"]
[198,"Свободненский муниципальный район","Дмитриевское","10642412","Филиал ОАО \"Ремонтно-эксплуатационное управление\"  \"Амурский\"","7714783092","280143001","Оказание услуг в сфере горячего водоснабжения"]
[199,"Свободненский муниципальный район","Желтояровское","10642416","ООО \"Районные коммунальные системы\"","2823007904","282301001","Оказание услуг в сфере горячего водоснабжения"]
[200,"Свободненский муниципальный район","Загорно-Селитьбинское","10642420","ООО \"Районные коммунальные системы\"","2823007904","282301001","Оказание услуг в сфере горячего водоснабжения"]
[201,"Свободненский муниципальный район","Климоуцевское","10642424","ООО \"Районные коммунальные системы\"","2823007904","282301001","Оказание услуг в сфере горячего водоснабжения"]
[202,"Свободненский муниципальный район","Костюковское","10642428","ООО \"Районные коммунальные системы\"","2823007904","282301001","Оказание услуг в сфере горячего водоснабжения"]
[203,"Свободненский муниципальный район","Курганское","10642430","ООО \"Районные коммунальные системы\"","2823007904","282301001","Оказание услуг в сфере горячего водоснабжения"]
[204,"Свободненский муниципальный район","Малосазанское","10642434","Филиал ОАО \"Ремонтно-эксплуатационное управление\"  \"Амурский\"","7714783092","280143001","Оказание услуг в сфере горячего водоснабжения"]
[205,"Свободненский муниципальный район","Маркучинское","10642436","ООО \"Районные коммунальные системы\"","2823007904","282301001","Оказание услуг в сфере горячего водоснабжения"]
[206,"Свободненский муниципальный район","Москвитинское","10642440","ООО \"Районные коммунальные системы\"","2823007904","282301001","Оказание услуг в сфере горячего водоснабжения"]
[207,"Свободненский муниципальный район","Нижнебузулинское","10642444","ООО \"Районные коммунальные системы\"","2823007904","282301001","Оказание услуг в сфере горячего водоснабжения"]
[208,"Свободненский муниципальный район","Новгородское","10642432","ООО \"Районные коммунальные системы\"","2823007904","282301001","Оказание услуг в сфере горячего водоснабжения"]
[209,"Свободненский муниципальный район","Новоивановское","10642448","ООО \"Районные коммунальные системы\"","2823007904","282301001","Оказание услуг в сфере горячего водоснабжения"]
[210,"Свободненский муниципальный район","Новостепановское","10642456","ООО \"Районные коммунальные системы\"","2823007904","282301001","Оказание услуг в сфере горячего водоснабжения"]
[211,"Свободненский муниципальный район","Петропавловское","10642460","ООО \"Районные коммунальные системы\"","2823007904","282301001","Оказание услуг в сфере горячего водоснабжения"]
[212,"Свободненский муниципальный район","Рогачевское","10642464","ООО \"Районные коммунальные системы\"","2823007904","282301001","Оказание услуг в сфере горячего водоснабжения"]
[213,"Свободненский муниципальный район","Семеновское","10642468","ООО \"Районные коммунальные системы\"","2823007904","282301001","Оказание услуг в сфере горячего водоснабжения"]
[214,"Свободненский муниципальный район","Серебрянское","10642470","ООО \"Районные коммунальные системы\"","2823007904","282301001","Оказание услуг в сфере горячего водоснабжения"]
[215,"Свободненский муниципальный район","Сычевское","10642476","ООО \"Районные коммунальные системы\"","2823007904","282301001","Оказание услуг в сфере горячего водоснабжения"]
[216,"Свободненский муниципальный район","Талалинское","10642480","ООО \"Районные коммунальные системы\"","2823007904","282301001","Оказание услуг в сфере горячего водоснабжения"]
[217,"Свободненский муниципальный район","Усть-Перское","10642482","ООО \"Районные коммунальные системы\"","2823007904","282301001","Оказание услуг в сфере горячего водоснабжения"]
[218,"Свободненский муниципальный район","Черниговское","10642484","ООО \"Районные коммунальные системы\"","2823007904","282301001","Оказание услуг в сфере горячего водоснабжения"]
[219,"Свободненский муниципальный район","Черновское","10642488","ООО \"Районные коммунальные системы\"","2823007904","282301001","Оказание услуг в сфере горячего водоснабжения"]
[220,"Селемджинский муниципальный район","Исинское","10645405","ОАО \"Коммунальные системы БАМа\"","2808023556","280801001","Оказание услуг в сфере горячего водоснабжения"]
[221,"Селемджинский муниципальный район","Норское","10645408","Филиал ОАО \"Ремонтно-эксплуатационное управление\"  \"Амурский\"","7714783092","280143001","Оказание услуг в сфере горячего водоснабжения"]
[222,"Селемджинский муниципальный район","Поселок Февральск","10645189","ОАО \"Коммунальные системы БАМа\"","2808023556","280801001","Оказание услуг в сфере горячего водоснабжения"]
[223,"Серышевский муниципальный район","Аргинское","10647404","Открытое акционерное общество \"Облкоммунсервис\"","2801154052","280101001","Оказание услуг в сфере горячего водоснабжения"]
[224,"Серышевский муниципальный район","Аргинское","10647404","Филиал ОАО \"Ремонтно-эксплуатационное управление\"  \"Амурский\"","7714783092","280143001","Оказание услуг в сфере горячего водоснабжения"]
[225,"Серышевский муниципальный район","Водораздельненское","10647420","Открытое акционерное общество \"Облкоммунсервис\"","2801154052","280101001","Оказание услуг в сфере горячего водоснабжения"]
[226,"Серышевский муниципальный район","Лебяжьевское","10647428","Открытое акционерное общество \"Облкоммунсервис\"","2801154052","280101001","Оказание услуг в сфере горячего водоснабжения"]
[227,"Серышевский муниципальный район","Новосергеевское","10647436","ООО \" ЖКХ Томское-2\"","2824004896","282401001","Оказание услуг в сфере горячего водоснабжения"]
[228,"Серышевский муниципальный район","Новосергеевское","10647436","Открытое акционерное общество \"Облкоммунсервис\"","2801154052","280101001","Оказание услуг в сфере горячего водоснабжения"]
[229,"Серышевский муниципальный район","Озерненское","10647440","Филиал ОАО \"Ремонтно-эксплуатационное управление\"  \"Амурский\"","7714783092","280143001","Оказание услуг в сфере горячего водоснабжения"]
[230,"Серышевский муниципальный район","Полянское","10647444","Открытое акционерное общество \"Облкоммунсервис\"","2801154052","280101001","Оказание услуг в сфере горячего водоснабжения"]
[231,"Серышевский муниципальный район","Поселок Серышево","10647151","Открытое акционерное общество \"Облкоммунсервис\"","2801154052","280101001","Оказание услуг в сфере горячего водоснабжения"]
[232,"Серышевский муниципальный район","Поселок Серышево","10647151","Филиал ОАО \"Ремонтно-эксплуатационное управление\"  \"Амурский\"","7714783092","280143001","Оказание услуг в сфере горячего водоснабжения"]
[233,"Серышевский муниципальный район","Сосновское","10647416","Открытое акционерное общество \"Облкоммунсервис\"","2801154052","280101001","Оказание услуг в сфере горячего водоснабжения"]
[234,"Серышевский муниципальный район","Томское","10647448","МУП \"Теплоэнерго г. Белогорск\"","2804015434","280401001","Оказание услуг в сфере горячего водоснабжения"]
[235,"Серышевский муниципальный район","Томское","10647448","ООО \" ЖКХ Томское-2\"","2824004896","282401001","Оказание услуг в сфере горячего водоснабжения"]
[236,"Серышевский муниципальный район","Томское","10647448","ООО \"ЖКХ Томское\"","2824004582","282401001","Оказание услуг в сфере горячего водоснабжения"]
[237,"Серышевский муниципальный район","Томское","10647448","Филиал ОАО \"Ремонтно-эксплуатационное управление\"  \"Амурский\"","7714783092","280143001","Оказание услуг в сфере горячего водоснабжения"]
[238,"Серышевский муниципальный район","Широкологское","10647460","ООО \" ЖКХ Томское-2\"","2824004896","282401001","Оказание услуг в сфере горячего водоснабжения"]
[239,"Серышевский муниципальный район","Широкологское","10647460","ООО \"ЖКХ Томское\"","2824004582","282401001","Оказание услуг в сфере горячего водоснабжения"]
[240,"Сковородинский муниципальный район","Город Сковородино","10649101","Забайкальская дирекция по тепловодоснабжению - структурное подразделение Центральной дирекции по тепловодоснабжению филиала ОАО \"РЖД\"","7708503727","280701001","Оказание услуг в сфере горячего водоснабжения"]
[241,"Сковородинский муниципальный район","Город Сковородино","10649101","ОАО \"Буреягэсстрой\" СМЭУ","2813005249","281301001","Оказание услуг в сфере горячего водоснабжения"]
[242,"Сковородинский муниципальный район","Город Сковородино","10649101","ОАО \"Энерготерминал\"","7703639266","282645002","Оказание услуг в сфере горячего водоснабжения"]
[243,"Сковородинский муниципальный район","Джалиндинское","10649408","ООО \"ЖКХ-Ресурс\"","2801162751","280101001","Оказание услуг в сфере горячего водоснабжения"]
[244,"Сковородинский муниципальный район","Неверское","10649414","Забайкальская дирекция по тепловодоснабжению - структурное подразделение Центральной дирекции по тепловодоснабжению филиала ОАО \"РЖД\"","7708503727","280701001","Оказание услуг в сфере горячего водоснабжения"]
[245,"Сковородинский муниципальный район","Неверское","10649414","ООО \"ЖКХ-Ресурс\"","2801162751","280101001","Оказание услуг в сфере горячего водоснабжения"]
[246,"Сковородинский муниципальный район","Поселок Ерофей Павлович","10649155","Забайкальская дирекция по тепловодоснабжению - структурное подразделение Центральной дирекции по тепловодоснабжению филиала ОАО \"РЖД\"","7708503727","280701001","Оказание услуг в сфере горячего водоснабжения"]
[247,"Сковородинский муниципальный район","Поселок Уруша","10649185","Забайкальская дирекция по тепловодоснабжению - структурное подразделение Центральной дирекции по тепловодоснабжению филиала ОАО \"РЖД\"","7708503727","280701001","Оказание услуг в сфере горячего водоснабжения"]
[248,"Сковородинский муниципальный район","Поселок Уруша","10649185","МУП \"Энергоресурс\" рабочего поселка (п.г.т.) Уруша","2826006553","282601001","Оказание услуг в сфере горячего водоснабжения"]
[249,"Сковородинский муниципальный район","Поселок Уруша","10649185","Филиал ОАО \"Ремонтно-эксплуатационное управление\"  \"Амурский\"","7714783092","280143001","Оказание услуг в сфере горячего водоснабжения"]
[250,"Сковородинский муниципальный район","Солнечное","10649415","ООО \"ЖКХ-Ресурс\"","2801162751","280101001","Оказание услуг в сфере горячего водоснабжения"]
[251,"Сковородинский муниципальный район","Талданское","10649418","Забайкальская дирекция по тепловодоснабжению - структурное подразделение Центральной дирекции по тепловодоснабжению филиала ОАО \"РЖД\"","7708503727","280701001","Оказание услуг в сфере горячего водоснабжения"]
[252,"Сковородинский муниципальный район","Талданское","10649418","Талданский щебеночный завод - филиал ОАО \"Первая нерудная компания\"","7708670326","282603001","Оказание услуг в сфере горячего водоснабжения"]
[253,"Сковородинский муниципальный район","Тахтамыгдинское","10649420","ООО \"ЖКХ-Ресурс\"","2801162751","280101001","Оказание услуг в сфере горячего водоснабжения"]
[254,"Тамбовский муниципальный район","Тамбовское","10651456","Открытое акционерное общество \"Облкоммунсервис\"","2801154052","280101001","Оказание услуг в сфере горячего водоснабжения"]
[255,"Тамбовский муниципальный район","Тамбовское","10651456","Филиал ОАО \"Ремонтно-эксплуатационное управление\"  \"Амурский\"","7714783092","280143001","Оказание услуг в сфере горячего водоснабжения"]
[256,"Тындинский муниципальный район","Аносовское","10654402","ОАО \"Коммунальные системы БАМа\"","2808023556","280801001","Оказание услуг в сфере горячего водоснабжения"]
[257,"Тындинский муниципальный район","Аносовское","10654402","ООО \"Коммунальные системы БАМа\"","2808021326","280801001","Оказание услуг в сфере горячего водоснабжения"]
[258,"Тындинский муниципальный район","Беленький сельсовет","10654404","ОАО \"Коммунальные системы БАМа\"","2808023556","280801001","Оказание услуг в сфере горячего водоснабжения"]
[259,"Тындинский муниципальный район","Беленький сельсовет","10654404","ООО \"Коммунальные системы БАМа\"","2808021326","280801001","Оказание услуг в сфере горячего водоснабжения"]
[260,"Тындинский муниципальный район","Восточное","10654405","ООО \"Коммунальные системы БАМа\"","2808021326","280801001","Оказание услуг в сфере горячего водоснабжения"]
[261,"Тындинский муниципальный район","Дипкунское","10654414","ОАО \"Коммунальные системы БАМа\"","2808023556","280801001","Оказание услуг в сфере горячего водоснабжения"]
[262,"Тындинский муниципальный район","Дипкунское","10654414","ООО \"Коммунальные системы БАМа\"","2808021326","280801001","Оказание услуг в сфере горячего водоснабжения"]
[263,"Тындинский муниципальный район","Кувыктинское","10654407","ОАО \"Коммунальные системы БАМа\"","2808023556","280801001","Оказание услуг в сфере горячего водоснабжения"]
[264,"Тындинский муниципальный район","Кувыктинское","10654407","ООО \"Коммунальные системы БАМа\"","2808021326","280801001","Оказание услуг в сфере горячего водоснабжения"]
[265,"Тындинский муниципальный район","Ларбинское","10654410","ОАО \"Коммунальные системы БАМа\"","2808023556","280801001","Оказание услуг в сфере горячего водоснабжения"]
[266,"Тындинский муниципальный район","Ларбинское","10654410","ООО \"Коммунальные системы БАМа\"","2808021326","280801001","Оказание услуг в сфере горячего водоснабжения"]
[267,"Тындинский муниципальный район","Лопчинское","10654412","ОАО \"Коммунальные системы БАМа\"","2808023556","280801001","Оказание услуг в сфере горячего водоснабжения"]
[268,"Тындинский муниципальный район","Лопчинское","10654412","ООО \"Коммунальные системы БАМа\"","2808021326","280801001","Оказание услуг в сфере горячего водоснабжения"]
[269,"Тындинский муниципальный район","Маревское","10654415","ОАО \"Коммунальные системы БАМа\"","2808023556","280801001","Оказание услуг в сфере горячего водоснабжения"]
[270,"Тындинский муниципальный район","Маревское","10654415","ООО \"Коммунальные системы БАМа\"","2808021326","280801001","Оказание услуг в сфере горячего водоснабжения"]
[271,"Тындинский муниципальный район","Моготское","10654411","ОАО \"Коммунальные системы БАМа\"","2808023556","280801001","Оказание услуг в сфере горячего водоснабжения"]
[272,"Тындинский муниципальный район","Моготское","10654411","ООО \"Коммунальные системы БАМа\"","2808021326","280801001","Оказание услуг в сфере горячего водоснабжения"]
[273,"Тындинский муниципальный район","Муртыгитское","10654403","ОАО \"Коммунальные системы БАМа\"","2808023556","280801001","Оказание услуг в сфере горячего водоснабжения"]
[274,"Тындинский муниципальный район","Муртыгитское","10654403","ООО \"Коммунальные системы БАМа\"","2808021326","280801001","Оказание услуг в сфере горячего водоснабжения"]
[275,"Тындинский муниципальный район","Нюкжинское","10654408","ОАО \"Коммунальные системы БАМа\"","2808023556","280801001","Оказание услуг в сфере горячего водоснабжения"]
[276,"Тындинский муниципальный район","Нюкжинское","10654408","ООО \"Коммунальные системы БАМа\"","2808021326","280801001","Оказание услуг в сфере горячего водоснабжения"]
[277,"Тындинский муниципальный район","Олекминское","10654409","ОАО \"Коммунальные системы БАМа\"","2808023556","280801001","Оказание услуг в сфере горячего водоснабжения"]
[278,"Тындинский муниципальный район","Олекминское","10654409","ООО \"Коммунальные системы БАМа\"","2808021326","280801001","Оказание услуг в сфере горячего водоснабжения"]
[279,"Тындинский муниципальный район","Первомайское","10654413","ООО \"Регион\"","2808023299","280801001","Поставка горячей воды"]
[280,"Тындинский муниципальный район","Первомайское","10654413","ООО \"Регион-2\"","2808111650","280801001","Оказание услуг в сфере горячего водоснабжения"]
[281,"Тындинский муниципальный район","Тутаульское","10654416","ОАО \"Коммунальные системы БАМа\"","2808023556","280801001","Оказание услуг в сфере горячего водоснабжения"]
[282,"Тындинский муниципальный район","Тутаульское","10654416","ООО \"Коммунальные системы БАМа\"","2808021326","280801001","Оказание услуг в сфере горячего водоснабжения"]
[283,"Тындинский муниципальный район","Усть-Нюкжинское","10654425","ОАО \"Коммунальные системы БАМа\"","2808023556","280801001","Оказание услуг в сфере горячего водоснабжения"]
[284,"Тындинский муниципальный район","Усть-Нюкжинское","10654425","ООО \"Коммунальные системы БАМа\"","2808021326","280801001","Оказание услуг в сфере горячего водоснабжения"]
[285,"Тындинский муниципальный район","Хорогочинское","10654428","ОАО \"Коммунальные системы БАМа\"","2808023556","280801001","Оказание услуг в сфере горячего водоснабжения"]
[286,"Тындинский муниципальный район","Хорогочинское","10654428","ООО \"Коммунальные системы БАМа\"","2808021326","280801001","Оказание услуг в сфере горячего водоснабжения"]
[287,"Тындинский муниципальный район","Чильчинское","10654430","ОАО \"Коммунальные системы БАМа\"","2808023556","280801001","Оказание услуг в сфере горячего водоснабжения"]
[288,"Тындинский муниципальный район","Чильчинское","10654430","ООО \"Коммунальные системы БАМа\"","2808021326","280801001","Оказание услуг в сфере горячего водоснабжения"]
[289,"Тындинский муниципальный район","Юкталинское","10654439","ОАО \"Коммунальные системы БАМа\"","2808023556","280801001","Оказание услуг в сфере горячего водоснабжения"]
[290,"Тындинский муниципальный район","Юкталинское","10654439","ООО \"Коммунальные системы БАМа\"","2808021326","280801001","Оказание услуг в сфере горячего водоснабжения"]
[291,"Шимановский муниципальный район","Актайское","10655404","ООО \"Ушаковское\"","2829002878","282901001","Оказание услуг в сфере горячего водоснабжения"]
[292,"Шимановский муниципальный район","Береинское","10655412","ООО \"Ушаковское\"","2829002878","282901001","Оказание услуг в сфере горячего водоснабжения"]
[293,"Шимановский муниципальный район","Малиновское","10655472","ООО \"Ушаковское\"","2829002878","282901001","Оказание услуг в сфере горячего водоснабжения"]
[294,"Шимановский муниципальный район","Мухинское","10655424","Дистанция тепловых сетей Дальневосточной Дирекции по тепловодоснабжению структурного подразделения Центральной Дирекции по тепловодоснабжению - филиала ОАО \"Российские железные дороги\"","7708503727","280801001","Оказание услуг в сфере горячего водоснабжения"]
[295,"Шимановский муниципальный район","Мухинское","10655424","Забайкальская дирекция по тепловодоснабжению - структурное подразделение Центральной дирекции по тепловодоснабжению филиала ОАО \"РЖД\"","7708503727","280701001","Оказание услуг в сфере горячего водоснабжения"]
[296,"Шимановский муниципальный район","Мухинское","10655424","ООО \"Ушаковское\"","2829002878","282901001","Оказание услуг в сфере горячего водоснабжения"]
[297,"Шимановский муниципальный район","Нововоскресеновское","10655428","ООО \"Ушаковское\"","2829002878","282901001","Оказание услуг в сфере горячего водоснабжения"]
[298,"Шимановский муниципальный район","Новогеоргиевское","10655432","ООО \"Ушаковское\"","2829002878","282901001","Оказание услуг в сфере горячего водоснабжения"]
[299,"Шимановский муниципальный район","Петрушинское","10655436","ООО \"Ушаковское\"","2829002878","282901001","Оказание услуг в сфере горячего водоснабжения"]
[300,"Шимановский муниципальный район","Саскалинское","10655444","ООО \"Ушаковское\"","2829002878","282901001","Оказание услуг в сфере горячего водоснабжения"]
[301,"Шимановский муниципальный район","Свободнотрудское","10655452","ООО \"Ушаковское\"","2829002878","282901001","Оказание услуг в сфере горячего водоснабжения"]
[302,"Шимановский муниципальный район","Селетканское","10655456","ООО \"Ушаковское\"","2829002878","282901001","Оказание услуг в сфере горячего водоснабжения"]
[303,"Шимановский муниципальный район","Симоновское","10655460","ООО \"Ушаковское\"","2829002878","282901001","Оказание услуг в сфере горячего водоснабжения"]
[304,"Шимановский муниципальный район","Ураловское","10655462","ООО \"Ушаковское\"","2829002878","282901001","Оказание услуг в сфере горячего водоснабжения"]
[305,"Шимановский муниципальный район","Ушаковское","10655468","ООО \"Ушаковское\"","2829002878","282901001","Оказание услуг в сфере горячего водоснабжения"]
[306,"Шимановский муниципальный район","Чагоянское","10655480","ООО \"Ушаковское\"","2829002878","282901001","Оказание услуг в сфере горячего водоснабжения"]
[307,"Шимановский муниципальный район","Шимановский муниципальный район","10655000","ООО \"Ушаковское\"","2829002878","282901001","Оказание услуг в сфере горячего водоснабжения"]
[308,"","","","ОАО \"РАО ЭС Востока\"","2801133630","997450001","Оказание услуг в сфере горячего водоснабжения"]
[309,"","","","ОАО ДЭП №190","2829001730","280901001","Оказание услуг в сфере горячего водоснабжения"]

{"sheet":"modHyperlink","index":16,"n_rows":0,"n_cols":0,"rows_kept":0,"cut":false,"hidden":true,"merged":[]}

{"sheet":"modChange","index":17,"n_rows":0,"n_cols":0,"rows_kept":0,"cut":false,"hidden":true,"merged":[]}

{"sheet":"modTitleSheetHeaders","index":18,"n_rows":0,"n_cols":0,"rows_kept":0,"cut":false,"hidden":true,"merged":[]}

{"sheet":"modServiceModule","index":19,"n_rows":0,"n_cols":0,"rows_kept":0,"cut":false,"hidden":true,"merged":[]}

{"sheet":"modClassifierValidate","index":20,"n_rows":0,"n_cols":0,"rows_kept":0,"cut":false,"hidden":true,"merged":[]}

{"sheet":"Паспорт","index":21,"n_rows":71,"n_cols":57,"rows_kept":71,"cut":false,"hidden":true,"merged":[[48,8,48,10],[49,8,49,10],[52,8,52,10],[53,8,53,10],[50,8,50,10],[51,8,51,10],[46,8,46,10],[47,8,47,10],[41,8,41,10],[38,8,38,10],[39,8,39,10],[40,8,40,10],[44,8,44,10],[45,8,45,10],[42,8,42,10],[43,8,43,10],[3,3,3,10],[12,5,12,10],[13,5,13,10],[6,5,6,10],[7,5,7,10],[5,3,5,10],[8,5,8,10],[9,5,9,10],[10,5,10,10],[11,5,11,10],[14,6,14,9],[21,5,21,10],[17,3,17,10],[15,5,15,10],[18,5,18,10],[19,5,19,10],[20,5,20,10],[30,5,30,10],[31,7,31,10],[32,7,32,10],[22,5,22,10],[23,5,23,10],[29,3,29,10],[25,3,25,10],[26,5,26,10],[27,3,27,10],[33,3,33,10],[54,3,54,10],[62,5,62,10],[57,5,57,10],[58,5,58,10],[56,3,56,10],[36,8,36,10],[37,8,37,10],[59,5,59,10],[35,3,35,10],[64,3,64,10],[61,3,61,10],[63,5,63,10],[70,5,70,10],[69,5,69,10],[68,5,68,10],[67,5,67,10],[66,3,66,10]]}
[null,null,null,null,null,null,null,null,null,null,null,null,null,null,null,null,null,null,null,null,null,null,null,null,null,null,null,null,null,null,null,null,null,null,null,null,null,null,null,null,null,null,null,null,null,null,null,"Код диапазона:","Название диапазона:","Сфера регулирования:","Подсфера:","Тип информации в шаблоне:","Состояние шаблона:","Периодичность:","\"Геотип\" шаблона:","Тип шаблона:","Заказчик:"]
[null,null,null,null,null,null,null,null,null,null,null,null,null,null,null,null,null,null,null,null,null,null,null,null,null,null,null,null,null,null,null,null,null,null,null,null,null,null,null,null,null,null,null,null,null,null,null,"ps_sr","Сфера регулирования:","Не определено","Не определено","Не определено","Не определено","Не определено","Не определено","Не определено","Не определено"]
[null,null,null,null,null,null,null,null,null,null,null,null,null,null,null,null,null,null,null,null,null,null,null,null,null,null,null,null,null,null,null,null,null,null,null,null,null,null,null,null,null,null,null,null,null,null,null,"ps_ti","Тип информации в шаблоне:","NETS","водоотведение - очистка","Статистический","Проект","Единовременный","Региональный шаблон","Атомарный","РЭК"]
[null,null,null,"Паспорт к шаблону",null,null,null,null,null,null,null,null,null,null,null,null,null,null,null,null,null,null,null,null,null,null,null,null,null,null,null,null,null,null,null,null,null,null,null,null,null,null,null,null,null,null,null,"ps_ssh","Состояние шаблона:","Аэропорты","водоотведение - передача","Расчетный","Утвержден","Ежемесячный","Муниципальный шаблон","Сводный","ФСТ"]
[null,null,null,null,null,null,null,null,null,null,null,null,null,null,null,null,null,null,null,null,null,null,null,null,null,null,null,null,null,null,null,null,null,null,null,null,null,null,null,null,null,null,null,null,null,null,null,"ps_p","Периодичность:","Газ","водоотведение - прием","Обосновывающие материалы",null,"Ежеквартальный","Шаблон от организации",null,"Экспертная организация"]
[null,null,null,"1. Общие сведения",null,null,null,null,null,null,null,null,null,null,null,null,null,null,null,null,null,null,null,null,null,null,null,null,null,null,null,null,null,null,null,null,null,null,null,null,null,null,null,null,null,null,null,"ps_geo","\"Геотип\" шаблона:","Железные дороги","водоснабжение - очистка",null,null,"Ежегодный"]
[null,null,null,"1.1","Код",null,null,null,null,null,null,null,null,null,null,null,null,null,null,null,null,null,null,null,null,null,null,null,null,null,null,null,null,null,null,null,null,null,null,null,null,null,null,null,null,null,null,"ps_tsh","Тип шаблона:","ЖКХ","водоснабжение - передача"]
[null,null,null,"1.2","Краткое наименование",null,null,null,null,null,null,null,null,null,null,null,null,null,null,null,null,null,null,null,null,null,null,null,null,null,null,null,null,null,null,null,null,null,null,null,null,null,null,null,null,null,null,"ps_psr","Подсфера:","Медицина","водоснабжение - подъем"]
[null,null,null,"1.3","Полное наименование",null,null,null,null,null,null,null,null,null,null,null,null,null,null,null,null,null,null,null,null,null,null,null,null,null,null,null,null,null,null,null,null,null,null,null,null,null,null,null,null,null,null,"ps_z","Заказчик:","Порты","выработка ТС  "]
[null,null,null,"1.4","Сфера регулирования ",null,null,null,null,null,null,null,null,null,null,null,null,null,null,null,null,null,null,null,null,null,null,null,null,null,null,null,null,null,null,null,null,null,null,null,null,null,null,null,null,null,null,null,null,"Связь","выработка ТС в режиме комбинированной выработки"]
[null,null,null,"1.5","Подсфера",null,null,null,null,null,null,null,null,null,null,null,null,null,null,null,null,null,null,null,null,null,null,null,null,null,null,null,null,null,null,null,null,null,null,null,null,null,null,null,null,null,null,null,null,"Транспорт","выработка электрической энергии"]
[null,null,null,"1.6","Состояние шаблона (Утвержден/Проект)",null,null,null,null,null,null,null,null,null,null,null,null,null,null,null,null,null,null,null,null,null,null,null,null,null,null,null,null,null,null,null,null,null,null,null,null,null,null,null,null,null,null,null,null,"Электроэнергетика","выработка+передача+сбыт ТС"]
[null,null,null,"1.7","Заказчик",null,null,null,null,null,null,null,null,null,null,null,null,null,null,null,null,null,null,null,null,null,null,null,null,null,null,null,null,null,null,null,null,null,null,null,null,null,null,null,null,null,null,null,null,null,"передача ТС"]
[null,null,null,"1.8","Отчитывается",null,null,null,null,null,null,null,null,null,null,null,null,null,null,null,null,null,null,null,null,null,null,null,null,null,null,null,null,null,null,null,null,null,null,null,null,null,null,null,null,null,null,null,null,null,"передача ЭЭ"]
[null,null,null,"1.9","Тип шаблона",null,"Если шаблон сводный, необходимо указать код атомарного шаблона для него:",null,null,null,null,null,null,null,null,null,null,null,null,null,null,null,null,null,null,null,null,null,null,null,null,null,null,null,null,null,null,null,null,null,null,null,null,null,null,null,null,null,null,null,"сбыт ТС"]
[null,null,null,"1.10","Текущая версия",null,null,null,null,null,null,null,null,null,null,null,null,null,null,null,null,null,null,null,null,null,null,null,null,null,null,null,null,null,null,null,null,null,null,null,null,null,null,null,null,null,null,null,null,null,"сбыт ЭЭ"]
[null,null,null,null,null,null,null,null,null,null,null,null,null,null,null,null,null,null,null,null,null,null,null,null,null,null,null,null,null,null,null,null,null,null,null,null,null,null,null,null,null,null,null,null,null,null,null,null,null,null,"ТБО"]
[null,null,null,"2. Организационные"]
[null,null,null,"2.1","Тип информации в шаблоне "]
[null,null,null,"2.2","Ответственный регулятор (от заказчика)"]
[null,null,null,"2.3","Ответственный специалист (от СМА)"]
[null,null,null,"2.4","Ответственный программист (от СМА)"]
[null,null,null,"2.5","Ответственные за сбор данных (от СМА)"]
[null,null,null,"2.6","Ответственные за сбор данных (от заказчика)"]
[]
[null,null,null,"3. Законодательство (методики, приказы, постановления ...)"]
[null,null,"first","3.1","Документ1"]
[null,null,"end","Добавить документ"]
[]
[null,null,null,"4. Периодичность"]
[null,null,null,"4.1","Периодичность"]
[null,null,null,null,"Мониторинги(прошедшие и плановые)","Дата начала","Дата окончания","Согласно (приказ, постановление, письмо)"]
[null,null,"first","4.2.1","Мониторинг1"]
[null,null,"end","Добавить мониторинг"]
[]
[null,null,null,"5. Состав шаблона"]
[null,null,null,null,"Лист","Последняя дата изменений эскиза","Состояние листа","Наименование витрины для листа","Комментарии"]
[null,null,"first","5.1.1"]
[null,null,"Удалить","5.1.2"]
[null,null,"Удалить","5.1.3"]
[null,null,"Удалить","5.1.4"]
[null,null,"Удалить","5.1.5"]
[null,null,"Удалить","5.1.6"]
[null,null,"Удалить","5.1.7"]
[null,null,"Удалить","5.1.8"]
[null,null,"Удалить","5.1.9"]
[null,null,"Удалить","5.1.10"]
[null,null,"Удалить","5.1.11"]
[null,null,"Удалить","5.1.12"]
[null,null,"Удалить","5.1.13"]
[null,null,"Удалить","5.1.14"]
[null,null,"Удалить","5.1.15"]
[null,null,"Удалить","5.1.16"]
[null,null,"Удалить","5.1.17"]
[null,null,"end","Добавить лист"]
[]
[null,null,null,"6. Сроки и даты"]
[null,null,null,"6.1.1","Даты получения последних эскизов, от экспертов"]
[null,null,null,"6.1.2","Даты отправки шаблона на проверку"]
[null,null,null,"6.1.3","Предполагаемый срок сдачи шаблона в эксплуатацию"]
[]
[null,null,null,"7. Версии"]
[null,null,null,null,"Версия","Отличия от предыдущей"]
[null,null,"first","7.1"]
[null,null,"end","Добавить версию"]
[]
[null,null,null,"8. Дополнительно"]
[null,null,null,"8.1","Аналогичные(\"похожие\") шаблоны"]
[null,null,null,"8.2","Особенности шаблона"]
[null,null,null,"8.3","Модуль на основе данного шаблона"]
[null,null,null,"8.4","Процедуры загрузки данных в витрины"]

{"sheet":"REESTR_FILTERED","index":22,"n_rows":2,"n_cols":8,"rows_kept":2,"cut":false,"hidden":true,"merged":[]}
["№","МР","МО","МО ОКТМО","ОРГАНИЗАЦИЯ","ИНН","КПП","ВИД ДЕЯТЕЛЬНОСТИ"]
[1,"Город Благовещенск","Город Благовещенск","10701000","ОАО \"Амурские коммунальные системы\"","2801091892","280101001","Оказание услуг в сфере горячего водоснабжения"]

{"sheet":"REESTR_MO","index":23,"n_rows":317,"n_cols":5,"rows_kept":317,"cut":false,"hidden":true,"merged":[]}
["МР","МО","МО_ОКТМО","МР","ИМЯ ДИАПАЗОНА"]
["Архаринский муниципальный район","Антоновское","10605402","Архаринский муниципальный район","MO_LIST_2"]
["Архаринский муниципальный район","Аркадьевское","10605404","Белогорский муниципальный район","MO_LIST_3"]
["Архаринский муниципальный район","Архаринский муниципальный район","10605000","Благовещенский муниципальный район","MO_LIST_4"]
["Архаринский муниципальный район","Вольненское","10605408","Бурейский муниципальный район","MO_LIST_5"]
["Архаринский муниципальный район","Грибовское","10605412","Город Белогорск","MO_LIST_6"]
["Архаринский муниципальный район","Иннокентьевское","10605424","Город Благовещенск","MO_LIST_7"]
["Архаринский муниципальный район","Касаткинское","10605432","Город Зея","MO_LIST_8"]
["Архаринский муниципальный район","Кундурское","10605440","Город Райчихинск","MO_LIST_9"]
["Архаринский муниципальный район","Ленинское","10605444","Город Свободный","MO_LIST_10"]
["Архаринский муниципальный район","Новосергеевское","10605448","Город Тында","MO_LIST_11"]
["Архаринский муниципальный район","Новоспасское","10605452","Город Шимановск","MO_LIST_12"]
["Архаринский муниципальный район","Отважненское","10605456","Завитинский муниципальный район","MO_LIST_13"]
["Архаринский муниципальный район","Поселок Архара","10605151","Зейский муниципальный район","MO_LIST_14"]
["Архаринский муниципальный район","Северное","10605460","Ивановский муниципальный район","MO_LIST_15"]
["Архаринский муниципальный район","Урильское","10605464","Константиновский муниципальный район","MO_LIST_16"]
["Архаринский муниципальный район","Черниговское","10605468","Магдагачинский муниципальный район","MO_LIST_17"]
["Архаринский муниципальный район","Ядринское","10605472","Мазановский муниципальный район","MO_LIST_18"]
["Белогорский муниципальный район","Амурское","10608404","Михайловский муниципальный район","MO_LIST_19"]
["Белогорский муниципальный район","Белогорский муниципальный район","10608000","Октябрьский муниципальный район","MO_LIST_20"]
["Белогорский муниципальный район","Белоцерковское","10608406","Поселок Углегорск (ЗАТО)","MO_LIST_21"]
["Белогорский муниципальный район","Васильевское","10608408","Прогресс","MO_LIST_22"]
["Белогорский муниципальный район","Великокнязевское","10608412","Ромненский муниципальный район","MO_LIST_23"]
["Белогорский муниципальный район","Возжаевское","10608414","Свободненский муниципальный район","MO_LIST_24"]
["Белогорский муниципальный район","Кустанаевское","10608420","Селемджинский муниципальный район","MO_LIST_25"]
["Белогорский муниципальный район","Лохвицкое","10608424","Серышевский муниципальный район","MO_LIST_26"]
["Белогорский муниципальный район","Некрасовское","10608428","Сковородинский муниципальный район","MO_LIST_27"]
["Белогорский муниципальный район","Никольское","10608432","Тамбовский муниципальный район","MO_LIST_28"]
["Белогорский муниципальный район","Новинское","10608436","Тындинский муниципальный район","MO_LIST_29"]
["Белогорский муниципальный район","Озерянское","10608440","Шимановский муниципальный район","MO_LIST_30"]
["Белогорский муниципальный район","Пригородное","10608444"]
["Белогорский муниципальный район","Светиловское","10608449"]
["Белогорский муниципальный район","Томичевское","10608452"]
["Белогорский муниципальный район","Успеновское","10608456"]
["Благовещенский муниципальный район","Благовещенский муниципальный район","10611000"]
["Благовещенский муниципальный район","Волковское","10611408"]
["Благовещенский муниципальный район","Грибское","10611412"]
["Благовещенский муниципальный район","Гродековское","10611413"]
["Благовещенский муниципальный район","Марковское","10611416"]
["Благовещенский муниципальный район","Михайловское","10611420"]
["Благовещенский муниципальный район","Натальинское","10611424"]
["Благовещенский муниципальный район","Новопетровское","10611428"]
["Благовещенский муниципальный район","Новотроицкое","10611432"]
["Благовещенский муниципальный район","Сергеевское","10611436"]
["Благовещенский муниципальный район","Усть-Ивановское","10611438"]
["Благовещенский муниципальный район","Чигиринское","10611440"]
["Бурейский муниципальный район","Алексеевское","10615404"]
["Бурейский муниципальный район","Бурейский муниципальный район","10615000"]
["Бурейский муниципальный район","Виноградовское","10615412"]
["Бурейский муниципальный район","Долдыканское","10615414"]
["Бурейский муниципальный район","Малиновское","10615432"]
["Бурейский муниципальный район","Поселок Бурея","10615157"]
["Бурейский муниципальный район","Поселок Новобурейский","10615151"]
["Бурейский муниципальный район","Поселок Талакан","10615172"]
["Бурейский муниципальный район","Райчихинское","10615436"]
["Бурейский муниципальный район","Родионовское","10615440"]
["Бурейский муниципальный район","Старорайчихинское","10615441"]
["Бурейский муниципальный район","Успеновское","10615444"]
["Город Белогорск","Город Белогорск","10710000"]
["Город Благовещенск","Город Благовещенск","10701000"]
["Город Зея","Город Зея","10712000"]
["Город Райчихинск","Город Райчихинск","10720000"]
["Город Свободный","Город Свободный","10730000"]
["Город Тында","Город Тында","10732000"]
["Город Шимановск","Город Шимановск","10740000"]
["Завитинский муниципальный район","Албазинское","10621404"]
["Завитинский муниципальный район","Антоновское","10621408"]
["Завитинский муниципальный район","Белояровское","10621412"]
["Завитинский муниципальный район","Болдыревское","10621416"]
["Завитинский муниципальный район","Верхнеильиновское","10621424"]
["Завитинский муниципальный район","Город Завитинск","10621101"]
["Завитинский муниципальный район","Завитинский муниципальный район","10621000"]
["Завитинский муниципальный район","Иннокентьевское","10621428"]
["Завитинский муниципальный район","Куприяновское","10621440"]
["Завитинский муниципальный район","Преображеновское","10621420"]
["Завитинский муниципальный район","Успеновское","10621444"]
["Зейский муниципальный район","Алгачинское","10625408"]
["Зейский муниципальный район","Амуро-Балтийское","10625404"]
["Зейский муниципальный район","Береговое","10625420"]
["Зейский муниципальный район","Бомнакское","10625412"]
["Зейский муниципальный район","Верхнезейское","10625414"]
["Зейский муниципальный район","Горненское","10625417"]
["Зейский муниципальный район","Дугдинское","10625423"]
["Зейский муниципальный район","Зейский муниципальный район","10625000"]
["Зейский муниципальный район","Золотогорское","10625424"]
["Зейский муниципальный район","Ивановское","10625428"]
["Зейский муниципальный район","Николаевское","10625432"]
["Зейский муниципальный район","Овсянковское","10625440"]
["Зейский муниципальный район","Огоронское","10625441"]
["Зейский муниципальный район","Октябрьское","10625442"]
["Зейский муниципальный район","Поляковское","10625443"]
["Зейский муниципальный район","Сианское","10625450"]
["Зейский муниципальный район","Снежногорское","10625456"]
["Зейский муниципальный район","Сосновоборское","10625452"]
["Зейский муниципальный район","Тунгалинское","10625457"]
["Зейский муниципальный район","Умлеканское","10625460"]
["Зейский муниципальный район","Хвойненское","10625444"]
["Зейский муниципальный район","Чалбачинское","10625462"]
["Зейский муниципальный район","Юбилейненское","10625464"]
["Ивановский муниципальный район","Андреевское","10628402"]
["Ивановский муниципальный район","Анновское","10628404"]
["Ивановский муниципальный район","Березовское","10628407"]
["Ивановский муниципальный район","Дмитриевское","10628410"]
["Ивановский муниципальный район","Ерковецкое","10628412"]
["Ивановский муниципальный район","Ивановский муниципальный район","10628000"]
["Ивановский муниципальный район","Ивановское","10628416"]
["Ивановский муниципальный район","Константиноградовское","10628417"]
["Ивановский муниципальный район","Николаевское","10628420"]
["Ивановский муниципальный район","Новоалексеевское","10628424"]
["Ивановский муниципальный район","Новоивановское","10628425"]
["Ивановский муниципальный район","Петропавловское","10628428"]
["Ивановский муниципальный район","Правовосточное","10628432"]
["Ивановский муниципальный район","Приозерное","10628436"]
["Ивановский муниципальный район","Семиозерское","10628439"]
["Ивановский муниципальный район","Среднебельское","10628440"]
["Ивановский муниципальный район","Троицкое","10628441"]
["Ивановский муниципальный район","Черемховское","10628448"]
["Константиновский муниципальный район","Верхнеполтавское","10630404"]
["Константиновский муниципальный район","Верхнеуртуйское","10630408"]
["Константиновский муниципальный район","Войковское","10630410"]
["Константиновский муниципальный район","Зеньковское","10630412"]
["Константиновский муниципальный район","Золотоножское","10630414"]
["Константиновский муниципальный район","Ключевское","10630416"]
["Константиновский муниципальный район","Коврижское","10630420"]
["Константиновский муниципальный район","Константиновский муниципальный район","10630000"]
["Константиновский муниципальный район","Константиновское","10630424"]
["Константиновский муниципальный район","Крестовоздвиженское","10630428"]
["Константиновский муниципальный район","Нижнеполтавское","10630432"]
["Константиновский муниципальный район","Новопетровское","10630436"]
["Константиновский муниципальный район","Новотроицкое","10630440"]
["Константиновский муниципальный район","Орловское","10630444"]
["Константиновский муниципальный район","Семидомское","10630450"]
["Константиновский муниципальный район","Среднеполтавское","10630453"]
["Магдагачинский муниципальный район","Гонжинское","10631404"]
["Магдагачинский муниципальный район","Гудачинское","10631406"]
["Магдагачинский муниципальный район","Дактуйское","10631408"]
["Магдагачинский муниципальный район","Кузнецовское","10631412"]
["Магдагачинский муниципальный район","Магдагачинский муниципальный район","10631000"]
["Магдагачинский муниципальный район","Поселок Магдагачи","10631151"]
["Магдагачинский муниципальный район","Поселок Сиваки","10631160"]
["Магдагачинский муниципальный район","Поселок Ушумун","10631170"]
["Магдагачинский муниципальный район","Толбузинское","10631420"]
["Магдагачинский муниципальный район","Тыгдинское","10631422"]
["Магдагачинский муниципальный район","Чалганское","10631424"]
["Магдагачинский муниципальный район","Черняевское","10631428"]
["Мазановский муниципальный район","Белояровское","10632404"]
["Мазановский муниципальный район","Богословское","10632408"]
["Мазановский муниципальный район","Дмитриевское","10632416"]
["Мазановский муниципальный район","Краснояровское","10632420"]
["Мазановский муниципальный район","Мазановский муниципальный район","10632000"]
["Мазановский муниципальный район","Мазановское","10632424"]
["Мазановский муниципальный район","Майское","10632425"]
["Мазановский муниципальный район","Маргаритовское","10632428"]
["Мазановский муниципальный район","Молчановское","10632432"]
["Мазановский муниципальный район","Новокиевское","10632436"]
["Мазановский муниципальный район","Новороссийское","10632440"]
["Мазановский муниципальный район","Практичанское","10632448"]
["Мазановский муниципальный район","Путятинское","10632452"]
["Мазановский муниципальный район","Романкауцкое","10632456"]
["Мазановский муниципальный район","Сапроновское","10632460"]
["Мазановский муниципальный район","Угловское","10632464"]
["Михайловский муниципальный район","Воскресеновское","10635408"]
["Михайловский муниципальный район","Димское","10635412"]
["Михайловский муниципальный район","Дубовское","10635416"]
["Михайловский муниципальный район","Зеленоборское","10635420"]
["Михайловский муниципальный район","Ильиновское","10635424"]
["Михайловский муниципальный район","Калининское","10635428"]
["Михайловский муниципальный район","Коршуновское","10635432"]
["Михайловский муниципальный район","Михайловский муниципальный район","10635000"]
["Михайловский муниципальный район","Михайловское","10635436"]
["Михайловский муниципальный район","Новочесноковское","10635440"]
["Михайловский муниципальный район","Поярковское","10635442"]
["Михайловский муниципальный район","Чесноковское","10635444"]
["Октябрьский муниципальный район","Борисоглебское","10638402"]
["Октябрьский муниципальный район","Варваровское","10638405"]
["Октябрьский муниципальный район","Восточное","10638408"]
["Октябрьский муниципальный район","Екатеринославское","10638403"]
["Октябрьский муниципальный район","Королинское","10638424"]
["Октябрьский муниципальный район","Максимовское","10638412"]
["Октябрьский муниципальный район","Мухинское","10638416"]
["Октябрьский муниципальный район","Николо-Александровское","10638420"]
["Октябрьский муниципальный район","Новомихайловское","10638428"]
["Октябрьский муниципальный район","Октябрьский муниципальный район","10638000"]
["Октябрьский муниципальный район","Панинское","10638429"]
["Октябрьский муниципальный район","Переясловское","10638433"]
["Октябрьский муниципальный район","Песчаноозерское","10638432"]
["Октябрьский муниципальный район","Романовское","10638436"]
["Октябрьский муниципальный район","Смеловское","10638440"]
["Октябрьский муниципальный район","Трудовое","10638404"]
["Поселок Углегорск (ЗАТО)","Поселок Углегорск (ЗАТО)","10770000"]
["Прогресс","Прогресс","10775000"]
["Ромненский муниципальный район","Амаранское","10640404"]
["Ромненский муниципальный район","Верхнебельское","10640408"]
["Ромненский муниципальный район","Дальневосточное","10640412"]
["Ромненский муниципальный район","Знаменское","10640416"]
["Ромненский муниципальный район","Калиновское","10640420"]
["Ромненский муниципальный район","Каховское","10640424"]
["Ромненский муниципальный район","Поздеевское","10640428"]
["Ромненский муниципальный район","Рогозовское","10640436"]
["Ромненский муниципальный район","Ромненский муниципальный район","10640000"]
["Ромненский муниципальный район","Ромненское","10640440"]
["Ромненский муниципальный район","Святоруссовское","10640444"]
["Ромненский муниципальный район","Чергалинское","10640449"]
["Свободненский муниципальный район","Голубинское","10642404"]
["Свободненский муниципальный район","Дмитриевское","10642412"]
["Свободненский муниципальный район","Желтояровское","10642416"]
["Свободненский муниципальный район","Загорно-Селитьбинское","10642420"]
["Свободненский муниципальный район","Климоуцевское","10642424"]
["Свободненский муниципальный район","Костюковское","10642428"]
["Свободненский муниципальный район","Курганское","10642430"]
["Свободненский муниципальный район","Малосазанское","10642434"]
["Свободненский муниципальный район","Маркучинское","10642436"]
["Свободненский муниципальный район","Москвитинское","10642440"]
["Свободненский муниципальный район","Нижнебузулинское","10642444"]
["Свободненский муниципальный район","Новгородское","10642432"]
["Свободненский муниципальный район","Новоивановское","10642448"]
["Свободненский муниципальный район","Новостепановское","10642456"]
["Свободненский муниципальный район","Петропавловское","10642460"]
["Свободненский муниципальный район","Рогачевское","10642464"]
["Свободненский муниципальный район","Свободненский муниципальный район","10642000"]
["Свободненский муниципальный район","Семеновское","10642468"]
["Свободненский муниципальный район","Серебрянское","10642470"]
["Свободненский муниципальный район","Сычевское","10642476"]
["Свободненский муниципальный район","Талалинское","10642480"]
["Свободненский муниципальный район","Усть-Перское","10642482"]
["Свободненский муниципальный район","Черниговское","10642484"]
["Свободненский муниципальный район","Черновское","10642488"]
["Селемджинский муниципальный район","Ивановское","10645404"]
["Селемджинский муниципальный район","Исинское","10645405"]
["Селемджинский муниципальный район","Норское","10645408"]
["Селемджинский муниципальный район","Поселок Златоустовск","10645162"]
["Селемджинский муниципальный район","Поселок Коболдо","10645168"]
["Селемджинский муниципальный район","Поселок Огоджа","10645176"]
["Селемджинский муниципальный район","Поселок Стойба","10645180"]
["Селемджинский муниципальный район","Поселок Токур","10645185"]
["Селемджинский муниципальный район","Поселок Февральск","10645189"]
["Селемджинский муниципальный район","Поселок Экимчан","10645151"]
["Селемджинский муниципальный район","Селемджинский муниципальный район","10645000"]
["Серышевский муниципальный район","Аргинское","10647404"]
["Серышевский муниципальный район","Большесазанское","10647412"]
["Серышевский муниципальный район","Водораздельненское","10647420"]
["Серышевский муниципальный район","Казанское","10647424"]
["Серышевский муниципальный район","Лебяжьевское","10647428"]
["Серышевский муниципальный район","Лермонтовское","10647408"]
["Серышевский муниципальный район","Лиманновское","10647432"]
["Серышевский муниципальный район","Новосергеевское","10647436"]
["Серышевский муниципальный район","Озерненское","10647440"]
["Серышевский муниципальный район","Полянское","10647444"]
["Серышевский муниципальный район","Поселок Серышево","10647151"]
["Серышевский муниципальный район","Серышевский муниципальный район","10647000"]
["Серышевский муниципальный район","Сосновское","10647416"]
["Серышевский муниципальный район","Томское","10647448"]
["Серышевский муниципальный район","Украинское","10647452"]
["Серышевский муниципальный район","Фроловское","10647456"]
["Серышевский муниципальный район","Широкологское","10647460"]
["Сковородинский муниципальный район","Албазинское","10649404"]
["Сковородинский муниципальный район","Город Сковородино","10649101"]
["Сковородинский муниципальный район","Джалиндинское","10649408"]
["Сковородинский муниципальный район","Неверское","10649414"]
["Сковородинский муниципальный район","Поселок Ерофей Павлович","10649155"]
["Сковородинский муниципальный район","Поселок Уруша","10649185"]
["Сковородинский муниципальный район","Сковородинский муниципальный район","10649000"]
["Сковородинский муниципальный район","Солнечное","10649415"]
["Сковородинский муниципальный район","Талданское","10649418"]
["Сковородинский муниципальный район","Тахтамыгдинское","10649420"]
["Тамбовский муниципальный район","Жариковское","10651408"]
["Тамбовский муниципальный район","Козьмодемьяновское","10651412"]
["Тамбовский муниципальный район","Красненское","10651416"]
["Тамбовский муниципальный район","Куропатинское","10651420"]
["Тамбовский муниципальный район","Лазаревское","10651424"]
["Тамбовский муниципальный район","Лермонтовское","10651421"]
["Тамбовский муниципальный район","Муравьевское","10651432"]
["Тамбовский муниципальный район","Николаевское","10651436"]
["Тамбовский муниципальный район","Новоалександровское","10651440"]
["Тамбовский муниципальный район","Привольненское","10651442"]
["Тамбовский муниципальный район","Придорожненское","10651444"]
["Тамбовский муниципальный район","Раздольненское","10651448"]
["Тамбовский муниципальный район","Садовское","10651452"]
["Тамбовский муниципальный район","Тамбовский муниципальный район","10651000"]
["Тамбовский муниципальный район","Тамбовское","10651456"]
["Тамбовский муниципальный район","Толстовское","10651460"]
["Тындинский муниципальный район","Аносовское","10654402"]
["Тындинский муниципальный район","Беленький сельсовет","10654404"]
["Тындинский муниципальный район","Восточное","10654405"]
["Тындинский муниципальный район","Дипкунское","10654414"]
["Тындинский муниципальный район","Кувыктинское","10654407"]
["Тындинский муниципальный район","Ларбинское","10654410"]
["Тындинский муниципальный район","Лопчинское","10654412"]
["Тындинский муниципальный район","Маревское","10654415"]
["Тындинский муниципальный район","Моготское","10654411"]
["Тындинский муниципальный район","Муртыгитское","10654403"]
["Тындинский муниципальный район","Нюкжинское","10654408"]
["Тындинский муниципальный район","Олекминское","10654409"]
["Тындинский муниципальный район","Первомайское","10654413"]
["Тындинский муниципальный район","Соловьевское","10654441"]
["Тындинский муниципальный район","Тутаульское","10654416"]
["Тындинский муниципальный район","Тындинский муниципальный район","10654000"]
["Тындинский муниципальный район","Урканское","10654417"]
["Тындинский муниципальный район","Усть-Нюкжинское","10654425"]
["Тындинский муниципальный район","Хорогочинское","10654428"]
["Тындинский муниципальный район","Чильчинское","10654430"]
["Тындинский муниципальный район","Юкталинское","10654439"]
["Шимановский муниципальный район","Актайское","10655404"]
["Шимановский муниципальный район","Береинское","10655412"]
["Шимановский муниципальный район","Малиновское","10655472"]
["Шимановский муниципальный район","Мухинское","10655424"]
["Шимановский муниципальный район","Нововоскресеновское","10655428"]
["Шимановский муниципальный район","Новогеоргиевское","10655432"]
["Шимановский муниципальный район","Петрушинское","10655436"]
["Шимановский муниципальный район","Саскалинское","10655444"]
["Шимановский муниципальный район","Свободнотрудское","10655452"]
["Шимановский муниципальный район","Селетканское","10655456"]
["Шимановский муниципальный район","Симоновское","10655460"]
["Шимановский муниципальный район","Ураловское","10655462"]
["Шимановский муниципальный район","Ушаковское","10655468"]
["Шимановский муниципальный район","Чагоянское","10655480"]
["Шимановский муниципальный район","Шимановский муниципальный район","10655000"]

{"sheet":"modfrmReestr","index":24,"n_rows":0,"n_cols":0,"rows_kept":0,"cut":false,"hidden":true,"merged":[]}

{"sheet":"modDblClick","index":25,"n_rows":0,"n_cols":0,"rows_kept":0,"cut":false,"hidden":true,"merged":[]}

{"sheet":"modfrmDateChoose","index":26,"n_rows":0,"n_cols":0,"rows_kept":0,"cut":false,"hidden":true,"merged":[]}

{"sheet":"modfrmSphereChoose","index":27,"n_rows":0,"n_cols":0,"rows_kept":0,"cut":false,"hidden":true,"merged":[]}

{"sheet":"modReestrMO","index":28,"n_rows":0,"n_cols":0,"rows_kept":0,"cut":false,"hidden":true,"merged":[]}

{"sheet":"modSheetMain01","index":29,"n_rows":0,"n_cols":0,"rows_kept":0,"cut":false,"hidden":true,"merged":[]}

{"sheet":"modSheetMain02","index":30,"n_rows":0,"n_cols":0,"rows_kept":0,"cut":false,"hidden":true,"merged":[]}

{"sheet":"modSheetMain03","index":31,"n_rows":0,"n_cols":0,"rows_kept":0,"cut":false,"hidden":true,"merged":[]}

{"sheet":"modSheetMain04","index":32,"n_rows":0,"n_cols":0,"rows_kept":0,"cut":false,"hidden":true,"merged":[]}

{"sheet":"modSheetMain05","index":33,"n_rows":0,"n_cols":0,"rows_kept":0,"cut":false,"hidden":true,"merged":[]}

{"sheet":"modSheetMain06","index":34,"n_rows":0,"n_cols":0,"rows_kept":0,"cut":false,"hidden":true,"merged":[]}

{"sheet":"modSheetMain07","index":35,"n_rows":0,"n_cols":0,"rows_kept":0,"cut":false,"hidden":true,"merged":[]}

{"sheet":"modSheetMain08","index":36,"n_rows":0,"n_cols":0,"rows_kept":0,"cut":false,"hidden":true,"merged":[]}

{"sheet":"modUpdTemplMain","index":37,"n_rows":0,"n_cols":0,"rows_kept":0,"cut":false,"hidden":true,"merged":[]}

{"sheet":"modRegionSelectSub","index":38,"n_rows":0,"n_cols":0,"rows_kept":0,"cut":false,"hidden":true,"merged":[]}

{"sheet":"modfrmCheckUpdates","index":39,"n_rows":0,"n_cols":0,"rows_kept":0,"cut":false,"hidden":true,"merged":[]}

{"sheet":"modCommonProv","index":40,"n_rows":0,"n_cols":0,"rows_kept":0,"cut":false,"hidden":true,"merged":[]}

{"sheet":"modProvGeneralProc","index":41,"n_rows":0,"n_cols":0,"rows_kept":0,"cut":false,"hidden":true,"merged":[]}

{"sheet":"modThisWorkbook","index":42,"n_rows":1,"n_cols":3,"rows_kept":1,"cut":false,"hidden":true,"merged":[]}
[null,null,{"$f":"\"modServiceModule.IsNameExists(wbBook, \"\"\"&A1&\"\"\") = False Or \" &  \"modServiceModule.IsNameExists(wbBook, \"\"\"&A2&\"\"\") = False or _\"","v":"modServiceModule.IsNameExists(wbBook, \"\") = False Or modServiceModule.IsNameExists(wbBook, \"\") = False or _"}]